Workbook

Sheet Simulacion
C7: ="- Proyecto realizado para" -> - Proyecto realizado para | D7: :
C8: ="- Fecha de nacimiento del Titular" -> - Fecha de nacimiento del Titular | D8: :
C11: ="- Fecha de Efecto" -> - Fecha de Efecto | D11: :
C12: ="- Capital a Asegurar" -> - Capital a Asegurar | D12: :
C13: ="- Recargo por sobreprima cobertura fallecimiento" -> - Recargo por sobreprima cobertura fallecimiento | D13: : | E13: 0
C14: ="- Recargo por sobreprima cobertura invalidez" -> - Recargo por sobreprima cobertura invalidez | D14: : | E14: 0
C16: 3. Coberturas del seguro
C17: - Prestación principal: fallecimiento por cualquier causa
C18: - Prestaciones complementarias opcionales: invalidez permanente total o absoluta, y fallecimiento por accidente y por accidente de circulación (doble / triple capital)
C19: - Incorpora una Prestación de supervivencia y fidelidad que se abona cada tres periodos de vigencia sucesivos, cuando el asegurado haya renovado la póliza sin causar otra prestación:
C20: * primer abono: 1% de la prima comercial que se abona al final del periodo de vigencia de la segunda renovación
C21: * sucesivos abonos: 0,5% adicional (1,5%, 2,0%, 2,5%, 3,0%, 3,5%, 4,0%, 4,5%, 5,0% máximo) de la prima comercial que se abona al final del periodo de vigencia de cada tres renovaciones
C24: 4. Periodo de vigencia
C25: El Seguro se contrata por un año y se renueva anualmente los días 1 de febrero de cada año
C32: ="- Edad a fecha simulación" -> - Edad a fecha simulación | E32: =IF(Validacion<>TRUE,"",Edad_Actuarial) ->  | F32: años | H32: ="Fecha simulación" -> Fecha simulación | J32: =+TODAY() -> 2021-09-21
C35: ="Cobertura: fallecimiento por cualquier causa" -> Cobertura: fallecimiento por cualquier causa
C36: ="- Prima primer trimestre" -> - Prima primer trimestre | E36: =IF(Validacion<>TRUE,"",par!$B$70+par!$B$71) ->  | I36: =" - Recargos (valoración anual) " -> - Recargos (valoración anual) | J36: =IF(Validacion<>TRUE,"",par!$B$71) -> 
C38: ="- Prima resto trimestres" -> - Prima resto trimestres | E38: =IF(Validacion<>TRUE,"",par!$B$65) -> 
C40: ="Coberturas: fallecimiento por cualquier causa + invalidez permanente absoluta" -> Coberturas: fallecimiento por cualquier causa + invalidez permanente absoluta
C41: ="- Prima primer trimestre" -> - Prima primer trimestre | E41: =+IF(E14="","",IF(Validacion<>TRUE,"",par!$B$76+par!$B$77)) ->  | I41: =" - Recargos (valoración anual) " -> - Recargos (valoración anual) | J41: =+IF(E14="","",IF(Validacion<>TRUE,"",par!$B$77)) -> 
C43: ="- Prima resto trimestres" -> - Prima resto trimestres | E43: =+IF(E14="","",IF(Validacion<>TRUE,"",par!$B$76)) -> 
C45: ="Coberturas: fallecimiento por cualquier causa + invalidez permanente total" -> Coberturas: fallecimiento por cualquier causa + invalidez permanente total
C46: ="- Prima primer trimestre" -> - Prima primer trimestre | E46: =+IF(E14="","",IF(Validacion<>TRUE,"",par!$B$72+par!$B$73)) ->  | I46: =" - Recargos (valoración anual) " -> - Recargos (valoración anual) | J46: =+IF(E14="","",IF(Validacion<>TRUE,"",par!$B$73)) -> 
C48: ="- Prima resto trimestres" -> - Prima resto trimestres | E48: =+IF(E14="","",IF(Validacion<>TRUE,"",par!$B$72)) -> 
C50: ="Coberturas: fallecimiento por cualquier causa + fallecimiento por accidente" -> Coberturas: fallecimiento por cualquier causa + fallecimiento por accidente
C51: ="- Prima primer trimestre" -> - Prima primer trimestre | E51: =IF(Validacion<>TRUE,"",par!$B$80+par!$B$81) ->  | I51: =" - Recargos (valoración anual) " -> - Recargos (valoración anual) | J51: =IF(Validacion<>TRUE,"",par!$B$81) -> 
C53: ="- Prima resto trimestres" -> - Prima resto trimestres | E53: =IF(Validacion<>TRUE,"",par!$B$80) -> 
C55: ="Coberturas: fallecimiento por cualquier causa + invalidez permanente absoluta + fallecimiento por accidente" -> Coberturas: fallecimiento por cualquier causa + invalidez permanente absoluta + fallecimiento por accidente
C56: ="- Prima primer trimestre" -> - Prima primer trimestre | E56: =+IF(E14="","",IF(Validacion<>TRUE,"",par!$B$78+par!$B$79)) ->  | I56: =" - Recargos (valoración anual) " -> - Recargos (valoración anual) | J56: =+IF(E14="","",IF(Validacion<>TRUE,"",par!$B$79)) -> 
C58: ="- Prima resto trimestres" -> - Prima resto trimestres | E58: =+IF(E14="","",IF(Validacion<>TRUE,"",par!$B$78)) -> 
C60: Coberturas: fallecimiento por cualquier causa + invalidez permanente total + fallecimiento por accidente
C61: ="- Prima primer trimestre" -> - Prima primer trimestre | E61: =+IF(E14="","",IF(Validacion<>TRUE,"",par!$B$74+par!$B$75)) ->  | I61: =" - Recargos (valoración anual) " -> - Recargos (valoración anual) | J61: =+IF(E14="","",IF(Validacion<>TRUE,"",par!$B$75)) -> 
C63: ="- Prima resto trimestres" -> - Prima resto trimestres | E63: =+IF(E14="","",IF(Validacion<>TRUE,"",par!$B$74)) -> 
C71: - Edad Actuarial (*) | G71: Fecha Actual | H71: 42327
A73: - Edad Actuarial (*) | E73: Fecha Actual | F73: 42327
A75: - Prima Trimestral Resultante | F75: - Recargos (valoración anual)
C79: FALSE | N79: Sexo no se utiliza | O79: HOMBRE
A80: Mostrar Simulación | C80: Prima | E80: Recargos | G80: Edad actuarial
A81: FALSE | C81: =+IF(ISNUMBER(par!A69),par!A69,"") ->  | E81: =+IF(ISNUMBER(par!A73+par!A77),par!A73+par!A77,"") ->  | G81: =+INT(YEARFRAC(F_Efecto,F_Nac_Titular,0)) -> 0
C83: Prima | E83: Recargos
C84: =+IF(ISNUMBER(par!C69),par!C69,"") -> 0 | E84: =+IF(ISNUMBER(par!C73+par!C77),par!C73+par!C77,"") -> 0
N95: =IF($E$12>50000,"error",$E$12) -> 0 | O95: Capital a asegurar
N96: =+N95/1000 -> 0
N97: MUJER
N98: =+G98*$N$96 -> 0
N99: =+G99*$N$96 -> 0
N100: 0
N101: 0
N102: 0
N103: 0
N104: 0
N105: 0
N106: 0
N107: 0
N108: 0
N109: 0
N110: 0
N111: 0
N112: 0
N113: 0
N114: 0
N115: 0
N116: 0
N117: 0
N118: 0
N119: 0
N120: 0
N121: 0
N122: 0
N123: 0
N124: 0
N125: 0
N126: 0
N127: 0
N128: 0
N129: 0
N130: 0
N131: 0
N132: 0
N133: 0
N134: 0
N135: 0
N136: 0
N137: 0
N138: 0
N139: 0
N140: 0
N141: 0
N142: 0
N143: 0
N144: 0
N145: 0
N146: 0
N147: 0
N148: 0
N149: 0
N150: 0
N151: 0
N152: 0
N153: 0
N154: 0
N155: 0
N156: 0
N157: 0
N158: 0
N159: 0
N160: 0
N161: 0
N162: 0
N163: =+G163*$N$96 -> 0
N164: 0
N165: 0
N166: 0
N167: 0
N168: 0
N169: 0
N170: 0
N171: 0
N172: 0
N173: 0
N174: 0
N175: 0
N176: 0
N177: 0
N178: 0
N179: 0
N180: 0
N181: 0
N182: 0
N183: 0
N184: 0
N185: 0
N186: 0
N187: 0
N188: 0

Sheet par (hidden)
A2: Absoluta
A3: Tasas por 1.000
A4: % hombre | B4: 0.5 | C4: =" <- Proporcion Qx en fallecimiento y Ix en Invalidez" -> <- Proporcion Qx en fallecimiento y Ix en Invalidez
A6: ajuste total | B6: 1.7 | C6: =" <- Recargo sobre las tasas de Invalidez Absoluta para obtener la Tasa de Invalidez Total" -> <- Recargo sobre las tasas de Invalidez Absoluta para obtener la Tasa de Invalidez Total
A7: minimo IAP | B7: 0.0002
A8: minimo ITP | B8: 0.00045
A10: edad ajuste | B10: 75 | C10: =" <- Edad Límite de aseguramiento" -> <- Edad Límite de aseguramiento
A12: Reduccuon PASEM | B12: 1 | C12: =" <- Factor Ajuste a la Q (Varon+Mujer) hasta la edad de de Ajuste" -> <- Factor Ajuste a la Q (Varon+Mujer) hasta la edad de de Ajuste
A13: minimo fall | B13: 0
A16: % premio supervivencia año | B16: 0.01
D18: Gastos Internos | F18: Gastos Externos
A19: Tasa de gastos | B19: 0.36 | D19: 0.16 | F19: 0.2
A21: capital | B21: 100000 | C21: =" <- Capital utlizado por el Dto. Actuarial para el analisis y creación de Tarifa. NO se utiliza en la simulación ni para la Nota Informativa" -> <- Capital utlizado por el Dto. Actuarial para el analisis y creación de Tarifa. NO se utiliza en la simulación ni para la Nota Informativa
A22: Inicio ajuste | B22: 100 | C22: =" <- Edad hasta la que se aplica el Factor de Ajuste a la tabla de fallecimiento" -> <- Edad hasta la que se aplica el Factor de Ajuste a la tabla de fallecimiento
A24: interes | B24: 0 | C24: =" <- Interes Tecnico aplicado" -> <- Interes Tecnico aplicado
B28: INFORMACION Y CALCULOS SIMULACIONES
B30: Rec. Fracc. | C30: 0.01
B32: V^0,5 | C32: =+(1/(1+interes)^(1/2)) -> 1
B34: IPS | C34: 0.08 | D34: cambiado el 01/01/2021. anteriormente al 6%
B36: Edad | C36: =Edad_Actuarial -> 0 | G36: =" <- Campo Calculado desde la SIMULACION" -> <- Campo Calculado desde la SIMULACION
B38: Capital final simulacion | C38: =IF(Edad_Actuarial>=70, MIN(120000,Simulacion!E12),Simulacion!E12) -> 0 | D38: (limitado a 120.000 para edad>=70 años) | G38: =" <- Campo Copiado de la SIMULACION" -> <- Campo Copiado de la SIMULACION
B40: =" · Q a la edad de " & TEXT(C36,"##") -> · Q a la edad de | C40: =VLOOKUP($C$36,'fallecimiento+total'!$A$2:$G$59,4) ->  | D40: =" · tpx a la edad de " & TEXT(C36,"##") -> · tpx a la edad de | E40: =1-Q_a_Edad ->  | G40: =" <- fallecimiento" -> <- fallecimiento
B42: =" · ITP a la edad de " & TEXT(C36,"##") -> · ITP a la edad de | C42: =VLOOKUP($C$36,'fallecimiento+total'!$A$2:$G$59,6) ->  | G42: =" <- invalidez total y permanente" -> <- invalidez total y permanente
B44: =" · IAP a la edad de " & TEXT(C36,"##") -> · IAP a la edad de | C44: =VLOOKUP($C$36,'fallecimiento+total'!$A$2:$G$59,5) ->  | G44: =" <- invalidez absoluta y permanente" -> <- invalidez absoluta y permanente
B46: =" · Q a la edad de " & TEXT(C36,"##") -> · Q a la edad de | C46: =VLOOKUP($C$36,'fallecimiento+total'!$A$2:$G$59,7) ->  | G46: =" <- fallecimiento por accidente" -> <- fallecimiento por accidente
B48: Fallecimiento Anual | C48: =ROUND((Q_a_Edad*V_Exp_0_5_c)/(1-GastosN)*Capital_final,2)*(1+Simulacion!$E$13) ->  | D48: sin ajuste edad | G48: =" <- Recordar. Importe sin recargo por fraccionamiento" -> <- Recordar. Importe sin recargo por fraccionamiento
B50: Invalidez Total Anual | C50: =ROUND((I_a_Edad*V_Exp_0_5_c)/(1-GastosN)*Capital_final,2)*(1+Simulacion!$E$14) ->  | D50: sin ajuste edad | G50: =" <- Recordar. Importe sin recargo por fraccionamiento" -> <- Recordar. Importe sin recargo por fraccionamiento
B52: Invalidez Absoluta Anual | C52: =ROUND(($C$44*V_Exp_0_5_c)/(1-GastosN)*Capital_final,2)*(1+Simulacion!$E$14) ->  | D52: sin ajuste edad | G52: =" <- Recordar. Importe sin recargo por fraccionamiento" -> <- Recordar. Importe sin recargo por fraccionamiento
B54: Fall. Accidente Anual | C54: =ROUND((·_Q_a_la_edad_2*V_Exp_0_5_c)/(1-GastosN)*Capital_final,2) ->  | G54: =" <- Recordar. Importe sin recargo por fraccionamiento" -> <- Recordar. Importe sin recargo por fraccionamiento
B56: Fallecimiento Trim. | C56: =ROUND(((C48)/4)*(1+Rec_Fracc_Trim_c),2) ->  | E56: =+C56*4*($E$40*premio_supervivencia) ->  | G56: =" <- Recordar. Importe con 1% de recargo por fraccionamiento trimestral" -> <- Recordar. Importe con 1% de recargo por fraccionamiento trimestral
B58: Invalidez ITP Trim. | C58: =ROUND(((C50)/4)*(1+Rec_Fracc_Trim_c),2) ->  | E58: =+C58*4*(E40*premio_supervivencia) ->  | G58: =" <- Recordar. Importe con 1% de recargo por fraccionamiento trimestral" -> <- Recordar. Importe con 1% de recargo por fraccionamiento trimestral
B60: Invalidez IAP Trim. | C60: =ROUND(((C52)/4)*(1+Rec_Fracc_Trim_c),2) ->  | E60: =+C60*4*(E40*premio_supervivencia) ->  | G60: =" <- Recordar. Importe con 1% de recargo por fraccionamiento trimestral" -> <- Recordar. Importe con 1% de recargo por fraccionamiento trimestral
B62: Fall. accidentes Trim. | C62: =ROUND(((C54)/4)*(1+Rec_Fracc_Trim_c),2) ->  | E62: =+C62*4*(E40*premio_supervivencia) ->  | G62: =" <- Recordar. Importe con 1% de recargo por fraccionamiento trimestral" -> <- Recordar. Importe con 1% de recargo por fraccionamiento trimestral
B64: FALL | C64: IAP | D64: ITP | E64: ACC
A65: PRIMA FRACCIONADA | B65: =+IFERROR(C56,0) -> 0 | C65: =+IF(Edad_Actuarial>=70,0,IFERROR(C60,0)) -> 0 | D65: =+IF(Edad_Actuarial>=70,0,IFERROR(C58,0)) -> 0 | E65: =+IFERROR(C62,0) -> 0 | H65: P = (1-%tpx)* C *qx*(1+i)^-0,5 + %tpx * ( C*qx*(1+i)^-0,5)
A66: RECARGOS IMPUESTO/S PRIMA | C66: =+ROUND(C65*0.08,2) -> 0 | D66: =+ROUND(D65*0.08,2) -> 0 | E66: =+ROUND(E65*0.08,2) -> 0
A67: RECARGOS LEA | C67: =+C65*0.15/100 -> 0 | D67: =+D65*0.15/100 -> 0 | E67: 0
A68: RECARGOS CONSORCIO | C68: =+ROUND((IF(C65=0,0,Capital_Simulacion*0.003/1000)),2)+IF(AND(C65=0,Edad_Actuarial>=70),ROUND(Capital_final*0.003/1000,2),0) -> 0 | D68: =+ROUND((IF(D65=0,0,Capital_Simulacion*0.003/1000)),2)+IF(AND(D65=0,Edad_Actuarial>=70),ROUND(Capital_final*0.003/1000,2),0) -> 0 | E68: =+ROUND(IF(E65=0,0,Capital_Simulacion*2*0.003/1000),2) -> 0 | H68: % Rec. LEA
A69: TOTAL (prima + ips) | B69: =+B66+B65 -> 0 | C69: =+C66+C65 -> 0 | D69: 0 | E69: 0 | H69: 0.0015
A70: TOTAL FALL | B70: =+B69 -> 0 | H70: % Rec. CRE | J70: Mín. Valor CRE
A71: RECARGO (VALORACION ANUAL) | B71: =+IF(B70=0,"",MAX(0.01,ROUND(Capital_final*0.003/1000,2))+B67*4) ->  | H71: 3e-06 | J71: 0.01
A72: TOTAL FALL + ITP | B72: =IF(Edad_Actuarial>=70,0,+B69+D69) -> 0
A73: RECARGO (VALORACION ANUAL) | B73: =+IF(Edad_Actuarial>=70,0,IF(B72=0,0,MAX(0.01,D68)+D67*4)) -> 0
A74: TOTAL FALL + ITP+ACC | B74: =IF(Edad_Actuarial>=70,0,+B69+D69+E69+F69) -> 0
A75: RECARGO (VALORACION ANUAL) | B75: =+IF(Edad_Actuarial>=70,0,IF(B74=0,0,MAX(0.03,(D68+E68+F68))+(+E67+F67+D67)*4)) -> 0
A76: TOTAL FALL + IAP | B76: =IF(Edad_Actuarial>=70,0,+B69+C69) -> 0
A77: RECARGO (VALORACION ANUAL) | B77: =IF(Edad_Actuarial>=70,0,+IF(B76=0,0,MAX(0.01,C68)+C67*4)) -> 0
A78: TOTAL FALL + IAP+ACC | B78: =IF(Edad_Actuarial>=70,0,+B69+C69+E69+F69) -> 0
A79: RECARGO (VALORACION ANUAL) | B79: =IF(Edad_Actuarial>=70,0,+IF(B78=0,0,MAX(0.03,(C68+E68+F68))+(+E67+F67+C67)*4)) -> 0
A80: TOTAL FALL+ACC | B80: =+B69+E69+F69 -> 0
A81: RECARGO (VALORACION ANUAL) | B81: =+IF(B80=0,0,MAX(0.03,ROUND(Capital_final*0.003/1000,2))+E68+F68)+(+E67+F67)*4 -> 0

Sheet fallecimiento+total (hidden)
A1: EDAD | B1: fall pasem2019 no relacionada individual 1 ord m | C1: fall pasem2019 no relacionada individual 1 ord y | D1: Tasa Fallecimiento PASEM ajustada con la Correccion por Edad | E1: Invalidez Absoluta Permanente ajustada con la Correccion por Edad | F1: Invalidez Total Permanente ajustada con la Correccion por Edad | G1: Tasa fallecimiento por accidente + tasa fallecimiento por accidente de circulacion | H1: tpx fallecimiento PASEM | I1: V^0,5 | J1: V^0,5 fraccionaria | K1: ANUAL FALL | L1: ANUAL IAP | M1: ANUAL ITP | N1: ANUAL FALL ACC | O1: FRACCIONARIA TRIM. FALL. | P1: FRACCIONARIA TRIM. IAP | Q1: FRACCIONARIA TRIM. ITP | R1: FRACCIONARIA TRIM. ACC | S1: Prima Trim. Fallec. | T1: Prima Trim. IAP | U1: Prima Trim. ITP | V1: Prima Trim. ACC | W1: Prima Trim. Fall+IAP | X1: Prima Trim. Fall+ITP | Y1: Prima Trim. Fall+ACC | Z1: Prima Trim. Fall+IAP+ACC | AA1: Prima Trim. Fall+ITP+ACC
A2: 18 | B2: 0.0002596178026 | C2: 0.000113641214 | D2: =+MAX(min_fall,(+B2*hombre+C2*(1-hombre))) -> 0.0001866295083 | E2: =+VLOOKUP(A2,invalidez_absoluta!A2:E54,5,FALSE) -> 0.0002 | F2: =+VLOOKUP(A2,invalidez_total!A2:E54,5,FALSE) -> 0.00045 | G2: =+VLOOKUP(A2,fall_accidente!$A$2:$D$59,4,FALSE) -> 0.000675 | H2: =1-D2 -> 0.9998133705 | I2: =+(1/(1+interes)^(1/2)) -> 1 | J2: =+(1/(1+interes)^(1/(2*4))) -> 1 | K2: =ROUND((+$D2*$I2)/(1-GastosN)*capital,2) -> 29.16 | L2: =ROUND((+$E2*$I2)/(1-GastosN)*capital,2) -> 31.25 | M2: =ROUND((+$F2*$I2)/(1-GastosN)*capital,2) -> 70.31 | N2: =ROUND((+$G2*$I2)/(1-GastosN)*capital,2) -> 105.47 | O2: =ROUND((1+0.02)*(+($D2/4)*$J2)/(1-GastosN)*capital,2) -> 7.44 | P2: =ROUND((1+0.02)*(+($E2/4)*$J2)/(1-GastosN)*capital,2) -> 7.97 | Q2: =ROUND((1+0.02)*(+($F2/4)*$J2)/(1-GastosN)*capital,2) -> 17.93 | R2: =ROUND((1+0.02)*(+($G2/4)*$J2)/(1-GastosN)*capital,2) -> 26.89 | S2: =ROUND(((K2)/4)*1.01,2) -> 7.36 | T2: =ROUND(((L2)/4)*1.01,2) -> 7.89 | U2: =ROUND(((M2)/4)*1.01,2) -> 17.75 | V2: =ROUND(((N2)/4)*1.01,2) -> 26.63 | W2: =+S2+T2 -> 15.25 | X2: =ROUND(S2+U2,2) -> 25.11 | Y2: =+S2+V2 -> 33.99 | Z2: =+S2+T2+V2 -> 41.88 | AA2: =+S2+U2+V2 -> 51.74
A3: 19 | B3: 0.0002649197359 | C3: 0.0001103649325 | D3: 0.0001876423342 | E3: =+VLOOKUP(A3,invalidez_absoluta!A3:E55,5,FALSE) -> 0.0002 | F3: =+VLOOKUP(A3,invalidez_total!A3:E55,5,FALSE) -> 0.00045 | G3: =+VLOOKUP(A3,fall_accidente!$A$2:$D$59,4,FALSE) -> 0.000675 | H3: =1-D3 -> 0.9998123577 | I3: 1 | J3: 1 | K3: =ROUND((+$D3*$I3)/(1-GastosN)*capital,2) -> 29.32 | L3: 31.25 | M3: 70.31 | N3: 105.47 | O3: 7.48 | P3: 7.97 | Q3: 17.93 | R3: 26.89 | S3: =ROUND(((K3)/4)*1.01,2) -> 7.4 | T3: =ROUND(((L3)/4)*1.01,2) -> 7.89 | U3: =ROUND(((M3)/4)*1.01,2) -> 17.75 | V3: =ROUND(((N3)/4)*1.01,2) -> 26.63 | W3: =+S3+T3 -> 15.29 | X3: =ROUND(S3+U3,2) -> 25.15 | Y3: =+S3+V3 -> 34.03 | Z3: =+S3+T3+V3 -> 41.92 | AA3: =+S3+U3+V3 -> 51.78
A4: 20 | B4: 0.0002714517651 | C4: 0.000109082959 | D4: 0.0001902673621 | E4: =+VLOOKUP(A4,invalidez_absoluta!A4:E56,5,FALSE) -> 0.0002 | F4: =+VLOOKUP(A4,invalidez_total!A4:E56,5,FALSE) -> 0.00045 | G4: =+VLOOKUP(A4,fall_accidente!$A$2:$D$59,4,FALSE) -> 0.000675 | H4: 0.9998097326 | I4: 1 | J4: 1 | K4: 29.73 | L4: 31.25 | M4: 70.31 | N4: 105.47 | O4: 7.58 | P4: 7.97 | Q4: 17.93 | R4: 26.89 | S4: 7.51 | T4: 7.89 | U4: 17.75 | V4: 26.63 | W4: 15.4 | X4: 25.26 | Y4: 34.14 | Z4: 42.03 | AA4: 51.89
A5: 21 | B5: 0.0002784134683 | C5: 0.0001091158653 | D5: 0.0001937646668 | E5: =+VLOOKUP(A5,invalidez_absoluta!A5:E57,5,FALSE) -> 0.0002 | F5: =+VLOOKUP(A5,invalidez_total!A5:E57,5,FALSE) -> 0.00045 | G5: =+VLOOKUP(A5,fall_accidente!$A$2:$D$59,4,FALSE) -> 0.000675 | H5: 0.9998062353 | I5: 1 | J5: 1 | K5: 30.28 | L5: 31.25 | M5: 70.31 | N5: 105.47 | O5: 7.72 | P5: 7.97 | Q5: 17.93 | R5: 26.89 | S5: 7.65 | T5: 7.89 | U5: 17.75 | V5: 26.63 | W5: 15.54 | X5: 25.4 | Y5: 34.28 | Z5: 42.17 | AA5: 52.03
A6: 22 | B6: 0.0002865102387 | C6: 0.0001103869549 | D6: 0.0001984485968 | E6: =+VLOOKUP(A6,invalidez_absoluta!A6:E58,5,FALSE) -> 0.0002 | F6: =+VLOOKUP(A6,invalidez_total!A6:E58,5,FALSE) -> 0.00045 | G6: =+VLOOKUP(A6,fall_accidente!$A$2:$D$59,4,FALSE) -> 0.000675 | H6: 0.9998015514 | I6: 1 | J6: 1 | K6: 31.01 | L6: 31.25 | M6: 70.31 | N6: 105.47 | O6: 7.91 | P6: 7.97 | Q6: 17.93 | R6: 26.89 | S6: 7.83 | T6: 7.89 | U6: 17.75 | V6: 26.63 | W6: 15.72 | X6: 25.58 | Y6: 34.46 | Z6: 42.35 | AA6: 52.21
A7: 23 | B7: 0.0002938861846 | C7: 0.0001118957986 | D7: 0.0002028909916 | E7: =+VLOOKUP(A7,invalidez_absoluta!A7:E59,5,FALSE) -> 0.0002 | F7: =+VLOOKUP(A7,invalidez_total!A7:E59,5,FALSE) -> 0.00045 | G7: =+VLOOKUP(A7,fall_accidente!$A$2:$D$59,4,FALSE) -> 0.000675 | H7: 0.999797109 | I7: 1 | J7: 1 | K7: 31.7 | L7: 31.25 | M7: 70.31 | N7: 105.47 | O7: 8.08 | P7: 7.97 | Q7: 17.93 | R7: 26.89 | S7: 8 | T7: 7.89 | U7: 17.75 | V7: 26.63 | W7: 15.89 | X7: 25.75 | Y7: 34.63 | Z7: 42.52 | AA7: 52.38
A8: 24 | B8: 0.0003005620623 | C8: 0.0001134888298 | D8: 0.0002070254461 | E8: =+VLOOKUP(A8,invalidez_absoluta!A8:E60,5,FALSE) -> 0.0002 | F8: =+VLOOKUP(A8,invalidez_total!A8:E60,5,FALSE) -> 0.00045 | G8: =+VLOOKUP(A8,fall_accidente!$A$2:$D$59,4,FALSE) -> 0.000675 | H8: 0.9997929746 | I8: 1 | J8: 1 | K8: 32.35 | L8: 31.25 | M8: 70.31 | N8: 105.47 | O8: 8.25 | P8: 7.97 | Q8: 17.93 | R8: 26.89 | S8: 8.17 | T8: 7.89 | U8: 17.75 | V8: 26.63 | W8: 16.06 | X8: 25.92 | Y8: 34.8 | Z8: 42.69 | AA8: 52.55
A9: 25 | B9: 0.000305517059 | C9: 0.0001147624189 | D9: 0.000210139739 | E9: =+VLOOKUP(A9,invalidez_absoluta!A9:E61,5,FALSE) -> 0.0002 | F9: =+VLOOKUP(A9,invalidez_total!A9:E61,5,FALSE) -> 0.00045 | G9: =+VLOOKUP(A9,fall_accidente!$A$2:$D$59,4,FALSE) -> 0.000675 | H9: 0.9997898603 | I9: 1 | J9: 1 | K9: 32.83 | L9: 31.25 | M9: 70.31 | N9: 105.47 | O9: 8.37 | P9: 7.97 | Q9: 17.93 | R9: 26.89 | S9: 8.29 | T9: 7.89 | U9: 17.75 | V9: 26.63 | W9: 16.18 | X9: 26.04 | Y9: 34.92 | Z9: 42.81 | AA9: 52.67
A10: 26 | B10: 0.0003068989635 | C10: 0.0001151484858 | D10: 0.0002110237246 | E10: =+VLOOKUP(A10,invalidez_absoluta!A10:E62,5,FALSE) -> 0.0002 | F10: =+VLOOKUP(A10,invalidez_total!A10:E62,5,FALSE) -> 0.00045 | G10: =+VLOOKUP(A10,fall_accidente!$A$2:$D$59,4,FALSE) -> 0.000675 | H10: 0.9997889763 | I10: 1 | J10: 1 | K10: 32.97 | L10: 31.25 | M10: 70.31 | N10: 105.47 | O10: 8.41 | P10: 7.97 | Q10: 17.93 | R10: 26.89 | S10: 8.32 | T10: 7.89 | U10: 17.75 | V10: 26.63 | W10: 16.21 | X10: 26.07 | Y10: 34.95 | Z10: 42.84 | AA10: 52.7
A11: 27 | B11: 0.0003049229945 | C11: 0.0001149608985 | D11: 0.0002099419465 | E11: =+VLOOKUP(A11,invalidez_absoluta!A11:E63,5,FALSE) -> 0.0002 | F11: =+VLOOKUP(A11,invalidez_total!A11:E63,5,FALSE) -> 0.00045 | G11: =+VLOOKUP(A11,fall_accidente!$A$2:$D$59,4,FALSE) -> 0.000675 | H11: 0.9997900581 | I11: 1 | J11: 1 | K11: 32.8 | L11: 31.25 | M11: 70.31 | N11: 105.47 | O11: 8.36 | P11: 7.97 | Q11: 17.93 | R11: 26.89 | S11: 8.28 | T11: 7.89 | U11: 17.75 | V11: 26.63 | W11: 16.17 | X11: 26.03 | Y11: 34.91 | Z11: 42.8 | AA11: 52.66
A12: 28 | B12: 0.0002998388238 | C12: 0.0001145097212 | D12: 0.0002071742725 | E12: =+VLOOKUP(A12,invalidez_absoluta!A12:E64,5,FALSE) -> 0.0002 | F12: =+VLOOKUP(A12,invalidez_total!A12:E64,5,FALSE) -> 0.00045 | G12: =+VLOOKUP(A12,fall_accidente!$A$2:$D$59,4,FALSE) -> 0.000675 | H12: 0.9997928257 | I12: 1 | J12: 1 | K12: 32.37 | L12: 31.25 | M12: 70.31 | N12: 105.47 | O12: 8.25 | P12: 7.97 | Q12: 17.93 | R12: 26.89 | S12: 8.17 | T12: 7.89 | U12: 17.75 | V12: 26.63 | W12: 16.06 | X12: 25.92 | Y12: 34.8 | Z12: 42.69 | AA12: 52.55
A13: 29 | B13: 0.0002923313854 | C13: 0.0001141642442 | D13: 0.0002032478148 | E13: =+VLOOKUP(A13,invalidez_absoluta!A13:E65,5,FALSE) -> 0.0002 | F13: =+VLOOKUP(A13,invalidez_total!A13:E65,5,FALSE) -> 0.00045 | G13: =+VLOOKUP(A13,fall_accidente!$A$2:$D$59,4,FALSE) -> 0.000675 | H13: 0.9997967522 | I13: 1 | J13: 1 | K13: 31.76 | L13: 31.25 | M13: 70.31 | N13: 105.47 | O13: 8.1 | P13: 7.97 | Q13: 17.93 | R13: 26.89 | S13: 8.02 | T13: 7.89 | U13: 17.75 | V13: 26.63 | W13: 15.91 | X13: 25.77 | Y13: 34.65 | Z13: 42.54 | AA13: 52.4
A14: 30 | B14: 0.0002860757188 | C14: 0.0001153601115 | D14: 0.0002007179151 | E14: =+VLOOKUP(A14,invalidez_absoluta!A14:E66,5,FALSE) -> 0.0002 | F14: =+VLOOKUP(A14,invalidez_total!A14:E66,5,FALSE) -> 0.00045 | G14: =+VLOOKUP(A14,fall_accidente!$A$2:$D$59,4,FALSE) -> 0.000675 | H14: 0.9997992821 | I14: 1 | J14: 1 | K14: 31.36 | L14: 31.25 | M14: 70.31 | N14: 105.47 | O14: 8 | P14: 7.97 | Q14: 17.93 | R14: 26.89 | S14: 7.92 | T14: 7.89 | U14: 17.75 | V14: 26.63 | W14: 15.81 | X14: 25.67 | Y14: 34.55 | Z14: 42.44 | AA14: 52.3
A15: 31 | B15: 0.0002817730338 | C15: 0.0001183839424 | D15: 0.0002000784881 | E15: =+VLOOKUP(A15,invalidez_absoluta!A15:E67,5,FALSE) -> 0.0002 | F15: =+VLOOKUP(A15,invalidez_total!A15:E67,5,FALSE) -> 0.00045 | G15: =+VLOOKUP(A15,fall_accidente!$A$2:$D$59,4,FALSE) -> 0.000675 | H15: 0.9997999215 | I15: 1 | J15: 1 | K15: 31.26 | L15: 31.25 | M15: 70.31 | N15: 105.47 | O15: 7.97 | P15: 7.97 | Q15: 17.93 | R15: 26.89 | S15: 7.89 | T15: 7.89 | U15: 17.75 | V15: 26.63 | W15: 15.78 | X15: 25.64 | Y15: 34.52 | Z15: 42.41 | AA15: 52.27
A16: 32 | B16: 0.0002816889521 | C16: 0.000124195764 | D16: 0.000202942358 | E16: =+VLOOKUP(A16,invalidez_absoluta!A16:E68,5,FALSE) -> 0.0002 | F16: =+VLOOKUP(A16,invalidez_total!A16:E68,5,FALSE) -> 0.00045 | G16: =+VLOOKUP(A16,fall_accidente!$A$2:$D$59,4,FALSE) -> 0.000675 | H16: 0.9997970576 | I16: 1 | J16: 1 | K16: 31.71 | L16: 31.25 | M16: 70.31 | N16: 105.47 | O16: 8.09 | P16: 7.97 | Q16: 17.93 | R16: 26.89 | S16: 8.01 | T16: 7.89 | U16: 17.75 | V16: 26.63 | W16: 15.9 | X16: 25.76 | Y16: 34.64 | Z16: 42.53 | AA16: 52.39
A17: 33 | B17: 0.0002884919177 | C17: 0.0001340964223 | D17: 0.00021129417 | E17: =+VLOOKUP(A17,invalidez_absoluta!A17:E69,5,FALSE) -> 0.0002 | F17: =+VLOOKUP(A17,invalidez_total!A17:E69,5,FALSE) -> 0.00045 | G17: =+VLOOKUP(A17,fall_accidente!$A$2:$D$59,4,FALSE) -> 0.000675 | H17: 0.9997887058 | I17: 1 | J17: 1 | K17: 33.01 | L17: 31.25 | M17: 70.31 | N17: 105.47 | O17: 8.42 | P17: 7.97 | Q17: 17.93 | R17: 26.89 | S17: 8.34 | T17: 7.89 | U17: 17.75 | V17: 26.63 | W17: 16.23 | X17: 26.09 | Y17: 34.97 | Z17: 42.86 | AA17: 52.72
A18: 34 | B18: 0.0003044674789 | C18: 0.0001494568221 | D18: 0.0002269621505 | E18: =+VLOOKUP(A18,invalidez_absoluta!A18:E70,5,FALSE) -> 0.0002 | F18: =+VLOOKUP(A18,invalidez_total!A18:E70,5,FALSE) -> 0.00045 | G18: =+VLOOKUP(A18,fall_accidente!$A$2:$D$59,4,FALSE) -> 0.000675 | H18: 0.9997730378 | I18: 1 | J18: 1 | K18: 35.46 | L18: 31.25 | M18: 70.31 | N18: 105.47 | O18: 9.04 | P18: 7.97 | Q18: 17.93 | R18: 26.89 | S18: 8.95 | T18: 7.89 | U18: 17.75 | V18: 26.63 | W18: 16.84 | X18: 26.7 | Y18: 35.58 | Z18: 43.47 | AA18: 53.33
A19: 35 | B19: 0.0003300592468 | C19: 0.0001708934919 | D19: 0.0002504763693 | E19: =+VLOOKUP(A19,invalidez_absoluta!A19:E71,5,FALSE) -> 0.0002096806842 | F19: =+VLOOKUP(A19,invalidez_total!A19:E71,5,FALSE) -> 0.00045 | G19: =+VLOOKUP(A19,fall_accidente!$A$2:$D$59,4,FALSE) -> 0.000675 | H19: 0.9997495236 | I19: 1 | J19: 1 | K19: 39.14 | L19: 32.76 | M19: 70.31 | N19: 105.47 | O19: 9.98 | P19: 8.35 | Q19: 17.93 | R19: 26.89 | S19: 9.88 | T19: 8.27 | U19: 17.75 | V19: 26.63 | W19: 18.15 | X19: 27.63 | Y19: 36.51 | Z19: 44.78 | AA19: 54.26
A20: 36 | B20: 0.0003616660508 | C20: 0.0001967451675 | D20: 0.0002792056091 | E20: =+VLOOKUP(A20,invalidez_absoluta!A20:E72,5,FALSE) -> 0.0002297015257 | F20: =+VLOOKUP(A20,invalidez_total!A20:E72,5,FALSE) -> 0.00045 | G20: =+VLOOKUP(A20,fall_accidente!$A$2:$D$59,4,FALSE) -> 0.000675 | H20: 0.9997207944 | I20: 1 | J20: 1 | K20: 43.63 | L20: 35.89 | M20: 70.31 | N20: 105.47 | O20: 11.12 | P20: 9.15 | Q20: 17.93 | R20: 26.89 | S20: 11.02 | T20: 9.06 | U20: 17.75 | V20: 26.63 | W20: 20.08 | X20: 28.77 | Y20: 37.65 | Z20: 46.71 | AA20: 55.4
A21: 37 | B21: 0.0003971880783 | C21: 0.0002256326065 | D21: 0.0003114103424 | E21: =+VLOOKUP(A21,invalidez_absoluta!A21:E73,5,FALSE) -> 0.0002508778644 | F21: =+VLOOKUP(A21,invalidez_total!A21:E73,5,FALSE) -> 0.00045 | G21: =+VLOOKUP(A21,fall_accidente!$A$2:$D$59,4,FALSE) -> 0.000675 | H21: 0.9996885897 | I21: 1 | J21: 1 | K21: 48.66 | L21: 39.2 | M21: 70.31 | N21: 105.47 | O21: 12.41 | P21: 10 | Q21: 17.93 | R21: 26.89 | S21: 12.29 | T21: 9.9 | U21: 17.75 | V21: 26.63 | W21: 22.19 | X21: 30.04 | Y21: 38.92 | Z21: 48.82 | AA21: 56.67
A22: 38 | B22: 0.000434547843 | C22: 0.0002557960403 | D22: 0.0003451719416 | E22: =+VLOOKUP(A22,invalidez_absoluta!A22:E74,5,FALSE) -> 0.0002745990909 | F22: =+VLOOKUP(A22,invalidez_total!A22:E74,5,FALSE) -> 0.0004668184545 | G22: =+VLOOKUP(A22,fall_accidente!$A$2:$D$59,4,FALSE) -> 0.000675 | H22: 0.9996548281 | I22: 1 | J22: 1 | K22: 53.93 | L22: 42.91 | M22: 72.94 | N22: 105.47 | O22: 13.75 | P22: 10.94 | Q22: 18.6 | R22: 26.89 | S22: 13.62 | T22: 10.83 | U22: 18.42 | V22: 26.63 | W22: 24.45 | X22: 32.04 | Y22: 40.25 | Z22: 51.08 | AA22: 58.67
A23: 39 | B23: 0.0004738408679 | C23: 0.0002864752679 | D23: 0.0003801580679 | E23: =+VLOOKUP(A23,invalidez_absoluta!A23:E75,5,FALSE) -> 0.0003004570972 | F23: =+VLOOKUP(A23,invalidez_total!A23:E75,5,FALSE) -> 0.0005107770652 | G23: =+VLOOKUP(A23,fall_accidente!$A$2:$D$59,4,FALSE) -> 0.000675 | H23: 0.9996198419 | I23: 1 | J23: 1 | K23: 59.4 | L23: 46.95 | M23: 79.81 | N23: 105.47 | O23: 15.15 | P23: 11.97 | Q23: 20.35 | R23: 26.89 | S23: 15 | T23: 11.85 | U23: 20.15 | V23: 26.63 | W23: 26.85 | X23: 35.15 | Y23: 41.63 | Z23: 53.48 | AA23: 61.78
A24: 40 | B24: 0.0005176782173 | C24: 0.0003183825396 | D24: 0.0004180303785 | E24: =+VLOOKUP(A24,invalidez_absoluta!A24:E76,5,FALSE) -> 0.0003286278025 | F24: =+VLOOKUP(A24,invalidez_total!A24:E76,5,FALSE) -> 0.0005586672642 | G24: =+VLOOKUP(A24,fall_accidente!$A$2:$D$59,4,FALSE) -> 0.000675 | H24: 0.9995819696 | I24: 1 | J24: 1 | K24: 65.32 | L24: 51.35 | M24: 87.29 | N24: 105.47 | O24: 16.66 | P24: 13.09 | Q24: 22.26 | R24: 26.89 | S24: 16.49 | T24: 12.97 | U24: 22.04 | V24: 26.63 | W24: 29.46 | X24: 38.53 | Y24: 43.12 | Z24: 56.09 | AA24: 65.16
A25: 41 | B25: 0.0005685325359 | C25: 0.0003521913287 | D25: 0.0004603619323 | E25: =+VLOOKUP(A25,invalidez_absoluta!A25:E77,5,FALSE) -> 0.0003598304094 | F25: =+VLOOKUP(A25,invalidez_total!A25:E77,5,FALSE) -> 0.0006117116961 | G25: =+VLOOKUP(A25,fall_accidente!$A$2:$D$59,4,FALSE) -> 0.000675 | H25: 0.9995396381 | I25: 1 | J25: 1 | K25: 71.93 | L25: 56.22 | M25: 95.58 | N25: 105.47 | O25: 18.34 | P25: 14.34 | Q25: 24.37 | R25: 26.89 | S25: 18.16 | T25: 14.2 | U25: 24.13 | V25: 26.63 | W25: 32.36 | X25: 42.29 | Y25: 44.79 | Z25: 58.99 | AA25: 68.92
A26: 42 | B26: 0.0006584708974 | C26: 0.0004069200286 | D26: 0.000532695463 | E26: =+VLOOKUP(A26,invalidez_absoluta!A26:E78,5,FALSE) -> 0.000393369512 | F26: =+VLOOKUP(A26,invalidez_total!A26:E78,5,FALSE) -> 0.0006687281705 | G26: =+VLOOKUP(A26,fall_accidente!$A$2:$D$59,4,FALSE) -> 0.000675 | H26: 0.9994673045 | I26: 1 | J26: 1 | K26: 83.23 | L26: 61.46 | M26: 104.49 | N26: 105.47 | O26: 21.22 | P26: 15.67 | Q26: 26.64 | R26: 26.89 | S26: 21.02 | T26: 15.52 | U26: 26.38 | V26: 26.63 | W26: 36.54 | X26: 47.4 | Y26: 47.65 | Z26: 63.17 | AA26: 74.03
A27: 43 | B27: 0.0007735007523 | C27: 0.0004727984307 | D27: 0.0006231495915 | E27: =+VLOOKUP(A27,invalidez_absoluta!A27:E79,5,FALSE) -> 0.0004307470605 | F27: =+VLOOKUP(A27,invalidez_total!A27:E79,5,FALSE) -> 0.0007322700028 | G27: =+VLOOKUP(A27,fall_accidente!$A$2:$D$59,4,FALSE) -> 0.000675 | H27: 0.9993768504 | I27: 1 | J27: 1 | K27: 97.37 | L27: 67.3 | M27: 114.42 | N27: 105.47 | O27: 24.83 | P27: 17.16 | Q27: 29.18 | R27: 26.89 | S27: 24.59 | T27: 16.99 | U27: 28.89 | V27: 26.63 | W27: 41.58 | X27: 53.48 | Y27: 51.22 | Z27: 68.21 | AA27: 80.11
A28: 44 | B28: 0.0009126435163 | C28: 0.0005481089236 | D28: 0.00073037622 | E28: =+VLOOKUP(A28,invalidez_absoluta!A28:E80,5,FALSE) -> 0.0004712453171 | F28: =+VLOOKUP(A28,invalidez_total!A28:E80,5,FALSE) -> 0.0008011170391 | G28: =+VLOOKUP(A28,fall_accidente!$A$2:$D$59,4,FALSE) -> 0.000675 | H28: 0.9992696238 | I28: 1 | J28: 1 | K28: 114.12 | L28: 73.63 | M28: 125.17 | N28: 105.47 | O28: 29.1 | P28: 18.78 | Q28: 31.92 | R28: 26.89 | S28: 28.82 | T28: 18.59 | U28: 31.61 | V28: 26.63 | W28: 47.41 | X28: 60.43 | Y28: 55.45 | Z28: 74.04 | AA28: 87.06
A29: 45 | B29: 0.001074492422 | C29: 0.000631359781 | D29: 0.0008529261017 | E29: =+VLOOKUP(A29,invalidez_absoluta!A29:E81,5,FALSE) -> 0.000515757922 | F29: =+VLOOKUP(A29,invalidez_total!A29:E81,5,FALSE) -> 0.0008767884674 | G29: =+VLOOKUP(A29,fall_accidente!$A$2:$D$59,4,FALSE) -> 0.000675 | H29: 0.9991470739 | I29: 1 | J29: 1 | K29: 133.27 | L29: 80.59 | M29: 137 | N29: 105.47 | O29: 33.98 | P29: 20.55 | Q29: 34.93 | R29: 26.89 | S29: 33.65 | T29: 20.35 | U29: 34.59 | V29: 26.63 | W29: 54 | X29: 68.24 | Y29: 60.28 | Z29: 80.63 | AA29: 94.87
A30: 46 | B30: 0.001261832827 | C30: 0.0007242170744 | D30: 0.0009930249508 | E30: =+VLOOKUP(A30,invalidez_absoluta!A30:E82,5,FALSE) -> 0.0005643468781 | F30: =+VLOOKUP(A30,invalidez_total!A30:E82,5,FALSE) -> 0.0009593896927 | G30: =+VLOOKUP(A30,fall_accidente!$A$2:$D$59,4,FALSE) -> 0.000675 | H30: 0.999006975 | I30: 1 | J30: 1 | K30: 155.16 | L30: 88.18 | M30: 149.9 | N30: 105.47 | O30: 39.57 | P30: 22.49 | Q30: 38.23 | R30: 26.89 | S30: 39.18 | T30: 22.27 | U30: 37.85 | V30: 26.63 | W30: 61.45 | X30: 77.03 | Y30: 65.81 | Z30: 88.08 | AA30: 103.66
A31: 47 | B31: 0.001481148832 | C31: 0.0008308796595 | D31: 0.001156014246 | E31: =+VLOOKUP(A31,invalidez_absoluta!A31:E83,5,FALSE) -> 0.0006175757132 | F31: =+VLOOKUP(A31,invalidez_total!A31:E83,5,FALSE) -> 0.001049878712 | G31: =+VLOOKUP(A31,fall_accidente!$A$2:$D$59,4,FALSE) -> 0.000675 | H31: 0.9988439858 | I31: 1 | J31: 1 | K31: 180.63 | L31: 96.5 | M31: 164.04 | N31: 105.47 | O31: 46.06 | P31: 24.61 | Q31: 41.83 | R31: 26.89 | S31: 45.61 | T31: 24.37 | U31: 41.42 | V31: 26.63 | W31: 69.98 | X31: 87.03 | Y31: 72.24 | Z31: 96.61 | AA31: 113.66
A32: 48 | B32: 0.001727671842 | C32: 0.0009494312431 | D32: 0.001338551542 | E32: =+VLOOKUP(A32,invalidez_absoluta!A32:E84,5,FALSE) -> 0.0006757188905 | F32: =+VLOOKUP(A32,invalidez_total!A32:E84,5,FALSE) -> 0.001148722114 | G32: =+VLOOKUP(A32,fall_accidente!$A$2:$D$59,4,FALSE) -> 0.000675 | H32: 0.9986614485 | I32: 1 | J32: 1 | K32: 209.15 | L32: 105.58 | M32: 179.49 | N32: 105.47 | O32: 53.33 | P32: 26.92 | Q32: 45.77 | R32: 26.89 | S32: 52.81 | T32: 26.66 | U32: 45.32 | V32: 26.63 | W32: 79.47 | X32: 98.13 | Y32: 79.44 | Z32: 106.1 | AA32: 124.76
A33: 49 | B33: 0.002005349931 | C33: 0.001082835302 | D33: 0.001544092616 | E33: =+VLOOKUP(A33,invalidez_absoluta!A33:E85,5,FALSE) -> 0.0007397730649 | F33: =+VLOOKUP(A33,invalidez_total!A33:E85,5,FALSE) -> 0.00125761421 | G33: =+VLOOKUP(A33,fall_accidente!$A$2:$D$59,4,FALSE) -> 0.000675 | H33: 0.9984559074 | I33: 1 | J33: 1 | K33: 241.26 | L33: 115.59 | M33: 196.5 | N33: 105.47 | O33: 61.52 | P33: 29.48 | Q33: 50.11 | R33: 26.89 | S33: 60.92 | T33: 29.19 | U33: 49.62 | V33: 26.63 | W33: 90.11 | X33: 110.54 | Y33: 87.55 | Z33: 116.74 | AA33: 137.17
A34: 50 | B34: 0.002310560461 | C34: 0.001229300314 | D34: =+MAX(min_fall,(+B34*hombre+C34*(1-hombre))) -> 0.001769930387 | E34: =+VLOOKUP(A34,invalidez_absoluta!A34:E86,5,FALSE) -> 0.0008094492991 | F34: =+VLOOKUP(A34,invalidez_total!A34:E86,5,FALSE) -> 0.001376063808 | G34: =+VLOOKUP(A34,fall_accidente!$A$2:$D$59,4,FALSE) -> 0.000675 | H34: 0.9982300696 | I34: =+(1/(1+interes)^(1/2)) -> 1 | J34: =+(1/(1+interes)^(1/(2*4))) -> 1 | K34: =ROUND((+$D34*$I34)/(1-GastosN)*capital,2) -> 276.55 | L34: =ROUND((+$E34*$I34)/(1-GastosN)*capital,2) -> 126.48 | M34: =ROUND((+$F34*$I34)/(1-GastosN)*capital,2) -> 215.01 | N34: =ROUND((+$G34*$I34)/(1-GastosN)*capital,2) -> 105.47 | O34: =ROUND((1+0.02)*(+($D34/4)*$J34)/(1-GastosN)*capital,2) -> 70.52 | P34: =ROUND((1+0.02)*(+($E34/4)*$J34)/(1-GastosN)*capital,2) -> 32.25 | Q34: =ROUND((1+0.02)*(+($F34/4)*$J34)/(1-GastosN)*capital,2) -> 54.83 | R34: =ROUND((1+0.02)*(+($G34/4)*$J34)/(1-GastosN)*capital,2) -> 26.89 | S34: 69.83 | T34: 31.94 | U34: 54.29 | V34: 26.63 | W34: 101.77 | X34: 124.12 | Y34: 96.46 | Z34: 128.4 | AA34: 150.75
A35: 51 | B35: 0.002559022886 | C35: 0.001343772329 | D35: 0.001951397607 | E35: =+VLOOKUP(A35,invalidez_absoluta!A35:E87,5,FALSE) -> 0.0008854312218 | F35: =+VLOOKUP(A35,invalidez_total!A35:E87,5,FALSE) -> 0.001505233077 | G35: =+VLOOKUP(A35,fall_accidente!$A$2:$D$59,4,FALSE) -> 0.000675 | H35: 0.9980486024 | I35: 1 | J35: 1 | K35: 304.91 | L35: 138.35 | M35: 235.19 | N35: 105.47 | O35: 77.75 | P35: 35.28 | Q35: 59.97 | R35: 26.89 | S35: 76.99 | T35: 34.93 | U35: 59.39 | V35: 26.63 | W35: 111.92 | X35: 136.38 | Y35: 103.62 | Z35: 138.55 | AA35: 163.01
A36: 52 | B36: 0.002823196157 | C36: 0.001463542408 | D36: 0.002143369283 | E36: =+VLOOKUP(A36,invalidez_absoluta!A36:E88,5,FALSE) -> 0.0009693063377 | F36: =+VLOOKUP(A36,invalidez_total!A36:E88,5,FALSE) -> 0.001647820774 | G36: =+VLOOKUP(A36,fall_accidente!$A$2:$D$59,4,FALSE) -> 0.000675 | H36: 0.9978566307 | I36: 1 | J36: 1 | K36: 334.9 | L36: 151.45 | M36: 257.47 | N36: 105.47 | O36: 85.4 | P36: 38.62 | Q36: 65.66 | R36: 26.89 | S36: 84.56 | T36: 38.24 | U36: 65.01 | V36: 26.63 | W36: 122.8 | X36: 149.57 | Y36: 111.19 | Z36: 149.43 | AA36: 176.2
A37: 53 | B37: 0.003102754999 | C37: 0.001586054211 | D37: 0.002344404605 | E37: =+VLOOKUP(A37,invalidez_absoluta!A37:E89,5,FALSE) -> 0.001060924065 | F37: =+VLOOKUP(A37,invalidez_total!A37:E89,5,FALSE) -> 0.00180357091 | G37: =+VLOOKUP(A37,fall_accidente!$A$2:$D$59,4,FALSE) -> 0.000675 | H37: 0.9976555954 | I37: 1 | J37: 1 | K37: 366.31 | L37: 165.77 | M37: 281.81 | N37: 105.47 | O37: 93.41 | P37: 42.27 | Q37: 71.86 | R37: 26.89 | S37: 92.49 | T37: 41.86 | U37: 71.16 | V37: 26.63 | W37: 134.35 | X37: 163.65 | Y37: 119.12 | Z37: 160.98 | AA37: 190.28
A38: 54 | B38: 0.003398814305 | C38: 0.001709474689 | D38: 0.002554144497 | E38: =+VLOOKUP(A38,invalidez_absoluta!A38:E90,5,FALSE) -> 0.001161055402 | F38: =+VLOOKUP(A38,invalidez_total!A38:E90,5,FALSE) -> 0.001973794184 | G38: =+VLOOKUP(A38,fall_accidente!$A$2:$D$59,4,FALSE) -> 0.000675 | H38: 0.9974458555 | I38: 1 | J38: 1 | K38: 399.09 | L38: 181.41 | M38: 308.41 | N38: 105.47 | O38: 101.77 | P38: 46.26 | Q38: 78.64 | R38: 26.89 | S38: 100.77 | T38: 45.81 | U38: 77.87 | V38: 26.63 | W38: 146.58 | X38: 178.64 | Y38: 127.4 | Z38: 173.21 | AA38: 205.27
A39: 55 | B39: 0.003713512923 | C39: 0.001833370807 | D39: 0.002773441865 | E39: =+VLOOKUP(A39,invalidez_absoluta!A39:E91,5,FALSE) -> 0.001270417154 | F39: =+VLOOKUP(A39,invalidez_total!A39:E91,5,FALSE) -> 0.002159709162 | G39: =+VLOOKUP(A39,fall_accidente!$A$2:$D$59,4,FALSE) -> 0.000675 | H39: 0.9972265581 | I39: 1 | J39: 1 | K39: 433.35 | L39: 198.5 | M39: 337.45 | N39: 105.47 | O39: 110.5 | P39: 50.62 | Q39: 86.05 | R39: 26.89 | S39: 109.42 | T39: 50.12 | U39: 85.21 | V39: 26.63 | W39: 159.54 | X39: 194.63 | Y39: 136.05 | Z39: 186.17 | AA39: 221.26
A40: 56 | B40: 0.004049805032 | C40: 0.001958942805 | D40: 0.003004373919 | E40: =+VLOOKUP(A40,invalidez_absoluta!A40:E92,5,FALSE) -> 0.001390347059 | F40: =+VLOOKUP(A40,invalidez_total!A40:E92,5,FALSE) -> 0.002363590001 | G40: =+VLOOKUP(A40,fall_accidente!$A$2:$D$59,4,FALSE) -> 0.000675 | H40: 0.9969956261 | I40: 1 | J40: 1 | K40: 469.43 | L40: 217.24 | M40: 369.31 | N40: 105.47 | O40: 119.71 | P40: 55.4 | Q40: 94.17 | R40: 26.89 | S40: 118.53 | T40: 54.85 | U40: 93.25 | V40: 26.63 | W40: 173.38 | X40: 211.78 | Y40: 145.16 | Z40: 200.01 | AA40: 238.41
A41: 57 | B41: 0.004410247731 | C41: 0.002088537632 | D41: 0.003249392682 | E41: =+VLOOKUP(A41,invalidez_absoluta!A41:E93,5,FALSE) -> 0.001521430945 | F41: =+VLOOKUP(A41,invalidez_total!A41:E93,5,FALSE) -> 0.002586432607 | G41: =+VLOOKUP(A41,fall_accidente!$A$2:$D$59,4,FALSE) -> 0.000675 | H41: 0.9967506073 | I41: 1 | J41: 1 | K41: 507.72 | L41: 237.72 | M41: 404.13 | N41: 105.47 | O41: 129.47 | P41: 60.62 | Q41: 103.05 | R41: 26.89 | S41: 128.2 | T41: 60.02 | U41: 102.04 | V41: 26.63 | W41: 188.22 | X41: 230.24 | Y41: 154.83 | Z41: 214.85 | AA41: 256.87
A42: 58 | B42: 0.004796715035 | C42: 0.002225401683 | D42: 0.003511058359 | E42: =+VLOOKUP(A42,invalidez_absoluta!A42:E94,5,FALSE) -> 0.001665297382 | F42: =+VLOOKUP(A42,invalidez_total!A42:E94,5,FALSE) -> 0.002831005549 | G42: =+VLOOKUP(A42,fall_accidente!$A$2:$D$59,4,FALSE) -> 0.000675 | H42: 0.9964889416 | I42: 1 | J42: 1 | K42: 548.6 | L42: 260.2 | M42: 442.34 | N42: 105.47 | O42: 139.89 | P42: 66.35 | Q42: 112.8 | R42: 26.89 | S42: 138.52 | T42: 65.7 | U42: 111.69 | V42: 26.63 | W42: 204.22 | X42: 250.21 | Y42: 165.15 | Z42: 230.85 | AA42: 276.84
A43: 59 | B43: 0.005210477608 | C43: 0.002373464966 | D43: 0.003791971287 | E43: =+VLOOKUP(A43,invalidez_absoluta!A43:E95,5,FALSE) -> 0.001822392795 | F43: =+VLOOKUP(A43,invalidez_total!A43:E95,5,FALSE) -> 0.003098067752 | G43: =+VLOOKUP(A43,fall_accidente!$A$2:$D$59,4,FALSE) -> 0.000675 | H43: 0.9962080287 | I43: 1 | J43: 1 | K43: 592.5 | L43: 284.75 | M43: 484.07 | N43: 105.47 | O43: 151.09 | P43: 72.61 | Q43: 123.44 | R43: 26.89 | S43: 149.61 | T43: 71.9 | U43: 122.23 | V43: 26.63 | W43: 221.51 | X43: 271.84 | Y43: 176.24 | Z43: 248.14 | AA43: 298.47
A44: 60 | B44: 0.005652119365 | C44: 0.002536849145 | D44: 0.004094484255 | E44: =+VLOOKUP(A44,invalidez_absoluta!A44:E96,5,FALSE) -> 0.001994816208 | F44: =+VLOOKUP(A44,invalidez_total!A44:E96,5,FALSE) -> 0.003391187553 | G44: =+VLOOKUP(A44,fall_accidente!$A$2:$D$59,4,FALSE) -> 0.000675 | H44: 0.9959055157 | I44: 1 | J44: 1 | K44: 639.76 | L44: 311.69 | M44: 529.87 | N44: 105.47 | O44: 163.14 | P44: 79.48 | Q44: 135.12 | R44: 26.89 | S44: 161.54 | T44: 78.7 | U44: 133.79 | V44: 26.63 | W44: 240.24 | X44: 295.33 | Y44: 188.17 | Z44: 266.87 | AA44: 321.96
A45: 61 | B45: 0.006122508949 | C45: 0.002719734471 | D45: 0.00442112171 | E45: =+VLOOKUP(A45,invalidez_absoluta!A45:E97,5,FALSE) -> 0.002183276416 | F45: =+VLOOKUP(A45,invalidez_total!A45:E97,5,FALSE) -> 0.003711569908 | G45: =+VLOOKUP(A45,fall_accidente!$A$2:$D$59,4,FALSE) -> 0.000675 | H45: 0.9955788783 | I45: 1 | J45: 1 | K45: 690.8 | L45: 341.14 | M45: 579.93 | N45: 105.47 | O45: 176.15 | P45: 86.99 | Q45: 147.88 | R45: 26.89 | S45: 174.43 | T45: 86.14 | U45: 146.43 | V45: 26.63 | W45: 260.57 | X45: 320.86 | Y45: 201.06 | Z45: 287.2 | AA45: 347.49
A46: 62 | B46: 0.006624571829 | C46: 0.002926301368 | D46: 0.004775436599 | E46: =+VLOOKUP(A46,invalidez_absoluta!A46:E98,5,FALSE) -> 0.002389450991 | F46: =+VLOOKUP(A46,invalidez_total!A46:E98,5,FALSE) -> 0.004062066684 | G46: =+VLOOKUP(A46,fall_accidente!$A$2:$D$59,4,FALSE) -> 0.000675 | H46: 0.9952245634 | I46: 1 | J46: 1 | K46: 746.16 | L46: 373.35 | M46: 634.7 | N46: 105.47 | O46: 190.27 | P46: 95.2 | Q46: 161.85 | R46: 26.89 | S46: 188.41 | T46: 94.27 | U46: 160.26 | V46: 26.63 | W46: 282.68 | X46: 348.67 | Y46: 215.04 | Z46: 309.31 | AA46: 375.3
A47: 63 | B47: 0.007163063655 | C47: 0.003160123919 | D47: 0.005161593787 | E47: =+VLOOKUP(A47,invalidez_absoluta!A47:E99,5,FALSE) -> 0.002615712576 | F47: =+VLOOKUP(A47,invalidez_total!A47:E99,5,FALSE) -> 0.004446711378 | G47: =+VLOOKUP(A47,fall_accidente!$A$2:$D$59,4,FALSE) -> 0.000675 | H47: 0.9948384062 | I47: 1 | J47: 1 | K47: 806.5 | L47: 408.71 | M47: 694.8 | N47: 105.47 | O47: 205.66 | P47: 104.22 | Q47: 177.17 | R47: 26.89 | S47: 203.64 | T47: 103.2 | U47: 175.44 | V47: 26.63 | W47: 306.84 | X47: 379.08 | Y47: 230.27 | Z47: 333.47 | AA47: 405.71
A48: 64 | B48: 0.007744881245 | C48: 0.003424422225 | D48: 0.005584651735 | E48: =+VLOOKUP(A48,invalidez_absoluta!A48:E100,5,FALSE) -> 0.002863074737 | F48: =+VLOOKUP(A48,invalidez_total!A48:E100,5,FALSE) -> 0.004867227052 | G48: =+VLOOKUP(A48,fall_accidente!$A$2:$D$59,4,FALSE) -> 0.000675 | H48: 0.9944153483 | I48: 1 | J48: 1 | K48: 872.6 | L48: 447.36 | M48: 760.5 | N48: 105.47 | O48: 222.51 | P48: 114.08 | Q48: 193.93 | R48: 26.89 | S48: 220.33 | T48: 112.96 | U48: 192.03 | V48: 26.63 | W48: 333.29 | X48: 412.36 | Y48: 246.96 | Z48: 359.92 | AA48: 438.99
A49: 65 | B49: 0.008378829997 | C49: 0.003722244 | D49: 0.006050536999 | E49: =+VLOOKUP(A49,invalidez_absoluta!A49:E101,5,FALSE) -> 0.003133829391 | F49: =+VLOOKUP(A49,invalidez_total!A49:E101,5,FALSE) -> 0.005327509965 | G49: =+VLOOKUP(A49,fall_accidente!$A$2:$D$59,4,FALSE) -> 0.000675 | H49: 0.993949463 | I49: 1 | J49: 1 | K49: 945.4 | L49: 489.66 | M49: 832.42 | N49: 105.47 | O49: 241.08 | P49: 124.86 | Q49: 212.27 | R49: 26.89 | S49: 238.71 | T49: 123.64 | U49: 210.19 | V49: 26.63 | W49: 362.35 | X49: 448.9 | Y49: 265.34 | Z49: 388.98 | AA49: 475.53
A50: 66 | B50: 0.009075170866 | C50: 0.004057264746 | D50: 0.006566217806 | E50: =+VLOOKUP(A50,invalidez_absoluta!A50:E102,5,FALSE) -> 0.003430188715 | F50: =+VLOOKUP(A50,invalidez_total!A50:E102,5,FALSE) -> 0.005831320815 | G50: =+VLOOKUP(A50,fall_accidente!$A$2:$D$59,4,FALSE) -> 0.000675 | H50: 0.9934337822 | I50: 1 | J50: 1 | K50: 1025.97 | L50: 535.97 | M50: 911.14 | N50: 105.47 | O50: 261.62 | P50: 136.67 | Q50: 232.34 | R50: 26.89 | S50: 259.06 | T50: 135.33 | U50: 230.06 | V50: 26.63 | W50: 394.39 | X50: 489.12 | Y50: 285.69 | Z50: 421.02 | AA50: 515.75
A51: 67 | B51: 0.009846343067 | C51: 0.004435451964 | D51: 0.007140897515 | E51: =+VLOOKUP(A51,invalidez_absoluta!A51:E103,5,FALSE) -> 0.003754574086 | F51: =+VLOOKUP(A51,invalidez_total!A51:E103,5,FALSE) -> 0.006382775945 | G51: =+VLOOKUP(A51,fall_accidente!$A$2:$D$59,4,FALSE) -> 0.000675 | H51: 0.9928591025 | I51: 1 | J51: 1 | K51: 1115.77 | L51: 586.65 | M51: 997.31 | N51: 105.47 | O51: 284.52 | P51: 149.6 | Q51: 254.31 | R51: 26.89 | S51: 281.73 | T51: 148.13 | U51: 251.82 | V51: 26.63 | W51: 429.86 | X51: 533.55 | Y51: 308.36 | Z51: 456.49 | AA51: 560.18
A52: 68 | B52: 0.01070662806 | C52: 0.004865895972 | D52: 0.007786262017 | E52: =+VLOOKUP(A52,invalidez_absoluta!A52:E104,5,FALSE) -> 0.004109635864 | F52: =+VLOOKUP(A52,invalidez_total!A52:E104,5,FALSE) -> 0.006986380969 | G52: =+VLOOKUP(A52,fall_accidente!$A$2:$D$59,4,FALSE) -> 0.000675 | H52: 0.992213738 | I52: 1 | J52: 1 | K52: 1216.6 | L52: 642.13 | M52: 1091.62 | N52: 105.47 | O52: 310.23 | P52: 163.74 | Q52: 278.36 | R52: 26.89 | S52: 307.19 | T52: 162.14 | U52: 275.63 | V52: 26.63 | W52: 469.33 | X52: 582.82 | Y52: 333.82 | Z52: 495.96 | AA52: 609.45
A53: 69 | B53: 0.0116716887 | C53: 0.005361482379 | D53: 0.008516585539 | E53: =+VLOOKUP(A53,invalidez_absoluta!A53:E105,5,FALSE) -> 0.004498275051 | F53: =+VLOOKUP(A53,invalidez_total!A53:E105,5,FALSE) -> 0.007647067587 | G53: =+VLOOKUP(A53,fall_accidente!$A$2:$D$59,4,FALSE) -> 0.000675 | H53: 0.9914834145 | I53: 1 | J53: 1 | K53: 1330.72 | L53: 702.86 | M53: 1194.85 | N53: 105.47 | O53: 339.33 | P53: 179.23 | Q53: 304.69 | R53: 26.89 | S53: 336.01 | T53: 177.47 | U53: 301.7 | V53: 26.63 | W53: 513.48 | X53: 637.71 | Y53: 362.64 | Z53: 540.11 | AA53: 664.34
A54: 70 | B54: 0.01275985025 | C54: 0.005939268167 | D54: 0.009349559206 | E54: =+VLOOKUP(A54,invalidez_absoluta!A54:E106,5,FALSE) -> 0.004923666988 | F54: =+VLOOKUP(A54,invalidez_total!A54:E106,5,FALSE) -> 0.008370233879 | G54: =+VLOOKUP(A54,fall_accidente!$A$2:$D$59,4,FALSE) -> 0.000675 | H54: 0.9906504408 | I54: 1 | J54: 1 | K54: 1460.87 | L54: 769.32 | M54: 1307.85 | N54: 105.47 | O54: 372.52 | P54: 196.18 | Q54: 333.5 | R54: 26.89 | S54: 368.87 | T54: 194.25 | U54: 330.23 | V54: 26.63 | W54: 563.12 | X54: 699.1 | Y54: 395.5 | Z54: 589.75 | AA54: 725.73
A55: 71 | B55: 0.01399224049 | C55: 0.00661997468 | D55: 0.01030610758 | E55: 0 | F55: 0 | G55: =+VLOOKUP(A55,fall_accidente!$A$2:$D$59,4,FALSE) -> 0.000675 | H55: 0.9896938924 | I55: 1 | J55: 1 | K55: 1610.33 | L55: 0 | M55: 0 | N55: 105.47 | O55: 410.63 | P55: 0 | Q55: 0 | R55: 26.89 | S55: 406.61 | T55: 0 | U55: 0 | V55: 26.63 | W55: 406.61 | X55: 406.61 | Y55: 433.24 | Z55: 433.24 | AA55: 433.24
A56: 72 | B56: 0.01539298955 | C56: 0.007426017703 | D56: 0.01140950363 | E56: 0 | F56: 0 | G56: =+VLOOKUP(A56,fall_accidente!$A$2:$D$59,4,FALSE) -> 0.000675 | H56: 0.9885904964 | I56: 1 | J56: 1 | K56: 1782.73 | L56: 0 | M56: 0 | N56: 105.47 | O56: 454.6 | P56: 0 | Q56: 0 | R56: 26.89 | S56: 450.14 | T56: 0 | U56: 0 | V56: 26.63 | W56: 450.14 | X56: 450.14 | Y56: 476.77 | Z56: 476.77 | AA56: 476.77
A57: 73 | B57: 0.01698716183 | C57: 0.008377806781 | D57: 0.0126824843 | E57: 0 | F57: 0 | G57: =+VLOOKUP(A57,fall_accidente!$A$2:$D$59,4,FALSE) -> 0.000675 | H57: 0.9873175157 | I57: 1 | J57: 1 | K57: 1981.64 | L57: 0 | M57: 0 | N57: 105.47 | O57: 505.32 | P57: 0 | Q57: 0 | R57: 26.89 | S57: 500.36 | T57: 0 | U57: 0 | V57: 26.63 | W57: 500.36 | X57: 500.36 | Y57: 526.99 | Z57: 526.99 | AA57: 526.99
A58: 74 | B58: 0.01880087116 | C58: 0.009490833499 | D58: 0.01414585233 | E58: 0 | F58: 0 | G58: =+VLOOKUP(A58,fall_accidente!$A$2:$D$59,4,FALSE) -> 0.000675 | H58: 0.9858541477 | I58: 1 | J58: 1 | K58: 2210.29 | L58: 0 | M58: 0 | N58: 105.47 | O58: 563.62 | P58: 0 | Q58: 0 | R58: 26.89 | S58: 558.1 | T58: 0 | U58: 0 | V58: 26.63 | W58: 558.1 | X58: 558.1 | Y58: 584.73 | Z58: 584.73 | AA58: 584.73
A59: 75 | B59: 0.02086075695 | C59: 0.0107773993 | D59: 0.01581907813 | E59: 0 | F59: 0 | G59: =+VLOOKUP(A59,fall_accidente!$A$2:$D$59,4,FALSE) -> 0.000675 | H59: 0.9841809219 | I59: 1 | J59: 1 | K59: 2471.73 | L59: 0 | M59: 0 | N59: 105.47 | O59: 630.29 | P59: 0 | Q59: 0 | R59: 26.89 | S59: 624.11 | T59: 0 | U59: 0 | V59: 26.63 | W59: 624.11 | X59: 624.11 | Y59: 650.74 | Z59: 650.74 | AA59: 650.74
B62: Rec. Fracc. Trim. | D62: V^0,5 | F62: Capital Nota Informativa | H62: IPS
B63: 0.01 | D63: =+(1/(1+interes)^(1/2)) -> 1 | F63: 10000 | H63: 0.06
J65: FALL+ITP | K65: FALL+ITP+ACC | L65: FALL+ITP | M65: FALL+ITP+ACC
A66: Edad | B66: Fallecimiento Anual | C66: Invalidez Anual | D66: Fall. Accidentes Anual | E66: Prima Trim. Fallecimiento | F66: Prima Trim. Invalidez | G66: Prima Trim. Fall. Acc | H66: IPS (sin acc) | I66: IPS (con acc.) | J66: Prima Trim. TOTAL | K66: Prima Trim. TOTAL | L66: Para control Prima sin IPS | M66: Para control Prima sin IPS
A67: =A2 -> 18 | B67: 2.18 | C67: 6.08 | D67: =ROUND((+$G2*V_Exp_0_5)/(1-GastosN)*Capital_N_Informativa,2) -> 10.55 | E67: =ROUND(((B67)/4)*(1+Rec_Fracc_Trim),2) -> 0.55 | F67: =ROUND(((C67)/4)*(1+Rec_Fracc_Trim),2) -> 1.54 | G67: =ROUND(((D67)/4)*(1+Rec_Fracc_Trim),2) -> 2.66 | H67: =ROUND(F67*PC_IPS,2) -> 0.09 | I67: =ROUND((+F67+G67)*PC_IPS,2) -> 0.25 | J67: =E67+F67+H67 -> 2.18 | K67: =+E67+F67+G67+I67 -> 5 | L67: =E67+F67 -> 2.09 | M67: =+E67+F67+G67 -> 4.75 | N67: =+M67/L67-1 -> 1.272727273
A68: =A3 -> 19 | B68: 2.19 | C68: 6.08 | D68: 10.55 | E68: 0.55 | F68: 1.54 | G68: 2.66 | H68: 0.09 | I68: 0.25 | J68: 2.18 | K68: =+E68+F68+G68+I68 -> 5 | L68: 2.09 | M68: 4.75 | N68: =+M68/L68-1 -> 1.272727273
A69: 20 | B69: 2.22 | C69: 6.08 | D69: 10.55 | E69: 0.56 | F69: 1.54 | G69: 2.66 | H69: 0.09 | I69: 0.25 | J69: 2.19 | K69: 5.01 | L69: 2.1 | M69: 4.76 | N69: 1.266666667
A70: 21 | B70: 2.26 | C70: 6.08 | D70: 10.55 | E70: 0.57 | F70: 1.54 | G70: 2.66 | H70: 0.09 | I70: 0.25 | J70: 2.2 | K70: 5.02 | L70: 2.11 | M70: 4.77 | N70: 1.260663507
A71: 22 | B71: 2.32 | C71: 6.08 | D71: 10.55 | E71: 0.59 | F71: 1.54 | G71: 2.66 | H71: 0.09 | I71: 0.25 | J71: 2.22 | K71: 5.04 | L71: 2.13 | M71: 4.79 | N71: 1.248826291
A72: 23 | B72: 2.37 | C72: 6.08 | D72: 10.55 | E72: 0.6 | F72: 1.54 | G72: 2.66 | H72: 0.09 | I72: 0.25 | J72: 2.23 | K72: 5.05 | L72: 2.14 | M72: 4.8 | N72: 1.242990654
A73: 24 | B73: 2.42 | C73: 6.08 | D73: 10.55 | E73: 0.61 | F73: 1.54 | G73: 2.66 | H73: 0.09 | I73: 0.25 | J73: 2.24 | K73: 5.06 | L73: 2.15 | M73: 4.81 | N73: 1.237209302
A74: 25 | B74: 2.45 | C74: 6.08 | D74: 10.55 | E74: 0.62 | F74: 1.54 | G74: 2.66 | H74: 0.09 | I74: 0.25 | J74: 2.25 | K74: 5.07 | L74: 2.16 | M74: 4.82 | N74: 1.231481481
A75: 26 | B75: 2.46 | C75: 6.08 | D75: 10.55 | E75: 0.62 | F75: 1.54 | G75: 2.66 | H75: 0.09 | I75: 0.25 | J75: 2.25 | K75: 5.07 | L75: 2.16 | M75: 4.82 | N75: 1.231481481
A76: 27 | B76: 2.45 | C76: 6.08 | D76: 10.55 | E76: 0.62 | F76: 1.54 | G76: 2.66 | H76: 0.09 | I76: 0.25 | J76: 2.25 | K76: 5.07 | L76: 2.16 | M76: 4.82 | N76: 1.231481481
A77: 28 | B77: 2.42 | C77: 6.08 | D77: 10.55 | E77: 0.61 | F77: 1.54 | G77: 2.66 | H77: 0.09 | I77: 0.25 | J77: 2.24 | K77: 5.06 | L77: 2.15 | M77: 4.81 | N77: 1.237209302
A78: 29 | B78: 2.37 | C78: 6.08 | D78: 10.55 | E78: 0.6 | F78: 1.54 | G78: 2.66 | H78: 0.09 | I78: 0.25 | J78: 2.23 | K78: 5.05 | L78: 2.14 | M78: 4.8 | N78: 1.242990654
A79: 30 | B79: 2.34 | C79: 6.08 | D79: 10.55 | E79: 0.59 | F79: 1.54 | G79: 2.66 | H79: 0.09 | I79: 0.25 | J79: 2.22 | K79: 5.04 | L79: 2.13 | M79: 4.79 | N79: 1.248826291
A80: 31 | B80: 2.34 | C80: 6.08 | D80: 10.55 | E80: 0.59 | F80: 1.54 | G80: 2.66 | H80: 0.09 | I80: 0.25 | J80: 2.22 | K80: 5.04 | L80: 2.13 | M80: 4.79 | N80: 1.248826291
A81: 32 | B81: 2.37 | C81: 6.08 | D81: 10.55 | E81: 0.6 | F81: 1.54 | G81: 2.66 | H81: 0.09 | I81: 0.25 | J81: 2.23 | K81: 5.05 | L81: 2.14 | M81: 4.8 | N81: 1.242990654
A82: 33 | B82: 2.47 | C82: 6.08 | D82: 10.55 | E82: 0.62 | F82: 1.54 | G82: 2.66 | H82: 0.09 | I82: 0.25 | J82: 2.25 | K82: 5.07 | L82: 2.16 | M82: 4.82 | N82: 1.231481481
A83: 34 | B83: 2.65 | C83: 6.08 | D83: 10.55 | E83: 0.67 | F83: 1.54 | G83: 2.66 | H83: 0.09 | I83: 0.25 | J83: 2.3 | K83: 5.12 | L83: 2.21 | M83: 4.87 | N83: 1.20361991
A84: 35 | B84: 2.93 | C84: 6.08 | D84: 10.55 | E84: 0.74 | F84: 1.54 | G84: 2.66 | H84: 0.09 | I84: 0.25 | J84: 2.37 | K84: 5.19 | L84: 2.28 | M84: 4.94 | N84: 1.166666667
A85: 36 | B85: 3.26 | C85: 6.08 | D85: 10.55 | E85: 0.82 | F85: 1.54 | G85: 2.66 | H85: 0.09 | I85: 0.25 | J85: 2.45 | K85: 5.27 | L85: 2.36 | M85: 5.02 | N85: 1.127118644
A86: 37 | B86: 3.64 | C86: 6.08 | D86: 10.55 | E86: 0.92 | F86: 1.54 | G86: 2.66 | H86: 0.09 | I86: 0.25 | J86: 2.55 | K86: 5.37 | L86: 2.46 | M86: 5.12 | N86: 1.081300813
A87: 38 | B87: 4.03 | C87: 6.08 | D87: 10.55 | E87: 1.02 | F87: 1.54 | G87: 2.66 | H87: 0.09 | I87: 0.25 | J87: 2.65 | K87: 5.47 | L87: 2.56 | M87: 5.22 | N87: 1.0390625
A88: 39 | B88: 4.44 | C88: 6.4 | D88: 10.55 | E88: 1.12 | F88: 1.62 | G88: 2.66 | H88: 0.1 | I88: 0.26 | J88: 2.84 | K88: 5.66 | L88: 2.74 | M88: 5.4 | N88: 0.9708029197
A89: 40 | B89: 4.88 | C89: 7 | D89: 10.55 | E89: 1.23 | F89: 1.77 | G89: 2.66 | H89: 0.11 | I89: 0.27 | J89: 3.11 | K89: 5.93 | L89: 3 | M89: 5.66 | N89: 0.8866666667
A90: 41 | B90: 5.38 | C90: 7.66 | D90: 10.55 | E90: 1.36 | F90: 1.93 | G90: 2.66 | H90: 0.12 | I90: 0.28 | J90: 3.41 | K90: 6.23 | L90: 3.29 | M90: 5.95 | N90: 0.8085106383
A91: 42 | B91: 6.22 | C91: 8.37 | D91: 10.55 | E91: 1.57 | F91: 2.11 | G91: 2.66 | H91: 0.13 | I91: 0.29 | J91: 3.81 | K91: 6.63 | L91: 3.68 | M91: 6.34 | N91: 0.722826087
A92: 43 | B92: 7.28 | C92: 9.17 | D92: 10.55 | E92: 1.84 | F92: 2.32 | G92: 2.66 | H92: 0.14 | I92: 0.3 | J92: 4.3 | K92: 7.12 | L92: 4.16 | M92: 6.82 | N92: 0.6394230769
A93: 44 | B93: 8.53 | C93: 10.03 | D93: 10.55 | E93: 2.15 | F93: 2.53 | G93: 2.66 | H93: 0.15 | I93: 0.31 | J93: 4.83 | K93: 7.65 | L93: 4.68 | M93: 7.34 | N93: 0.5683760684
A94: 45 | B94: 9.96 | C94: 10.98 | D94: 10.55 | E94: 2.51 | F94: 2.77 | G94: 2.66 | H94: 0.17 | I94: 0.33 | J94: 5.45 | K94: 8.27 | L94: 5.28 | M94: 7.94 | N94: 0.5037878788
A95: 46 | B95: 11.6 | C95: 12.01 | D95: 10.55 | E95: 2.93 | F95: 3.03 | G95: 2.66 | H95: 0.18 | I95: 0.34 | J95: 6.14 | K95: 8.96 | L95: 5.96 | M95: 8.62 | N95: 0.4463087248
A96: 47 | B96: 13.5 | C96: 13.15 | D96: 10.55 | E96: 3.41 | F96: 3.32 | G96: 2.66 | H96: 0.2 | I96: 0.36 | J96: 6.93 | K96: 9.75 | L96: 6.73 | M96: 9.39 | N96: 0.3952451709
A97: 48 | B97: 15.63 | C97: 14.38 | D97: 10.55 | E97: 3.95 | F97: 3.63 | G97: 2.66 | H97: 0.22 | I97: 0.38 | J97: 7.8 | K97: 10.62 | L97: 7.58 | M97: 10.24 | N97: 0.3509234828
A98: 49 | B98: 18.03 | C98: 15.75 | D98: 10.55 | E98: 4.55 | F98: 3.98 | G98: 2.66 | H98: 0.24 | I98: 0.4 | J98: 8.77 | K98: 11.59 | L98: 8.53 | M98: 11.19 | N98: 0.3118405627
A99: 50 | B99: 20.67 | C99: 17.23 | D99: =ROUND((+$G34*V_Exp_0_5)/(1-GastosN)*Capital_N_Informativa,2) -> 10.55 | E99: =ROUND(((B99)/4)*(1+Rec_Fracc_Trim),2) -> 5.22 | F99: =ROUND(((C99)/4)*(1+Rec_Fracc_Trim),2) -> 4.35 | G99: =ROUND(((D99)/4)*(1+Rec_Fracc_Trim),2) -> 2.66 | H99: =ROUND(F99*PC_IPS,2) -> 0.26 | I99: =ROUND((+F99+G99)*PC_IPS,2) -> 0.42 | J99: =E99+F99+H99 -> 9.83 | K99: 12.65 | L99: =E99+F99 -> 9.57 | M99: =+E99+F99+G99 -> 12.23 | N99: 0.2779519331
A100: 51 | B100: 22.79 | C100: 18.85 | D100: 10.55 | E100: 5.75 | F100: 4.76 | G100: 2.66 | H100: 0.29 | I100: 0.45 | J100: 10.8 | K100: 13.62 | L100: 10.51 | M100: 13.17 | N100: 0.2530922931
A101: 52 | B101: 25.03 | C101: 20.63 | D101: 10.55 | E101: 6.32 | F101: 5.21 | G101: 2.66 | H101: 0.31 | I101: 0.47 | J101: 11.84 | K101: 14.66 | L101: 11.53 | M101: 14.19 | N101: 0.2307025152
A102: 53 | B102: 27.38 | C102: 22.59 | D102: 10.55 | E102: 6.91 | F102: 5.7 | G102: 2.66 | H102: 0.34 | I102: 0.5 | J102: 12.95 | K102: 15.77 | L102: 12.61 | M102: 15.27 | N102: 0.2109436955
A103: 54 | B103: 29.83 | C103: 24.72 | D103: 10.55 | E103: 7.53 | F103: 6.24 | G103: 2.66 | H103: 0.37 | I103: 0.53 | J103: 14.14 | K103: 16.96 | L103: 13.77 | M103: 16.43 | N103: 0.1931735657
A104: 55 | B104: 33.74 | C104: 27.05 | D104: 10.55 | E104: 8.52 | F104: 6.83 | G104: 2.66 | H104: 0.41 | I104: 0.57 | J104: 15.76 | K104: 18.58 | L104: 15.35 | M104: 18.01 | N104: 0.1732899023
A105: 56 | B105: 36.55 | C105: 29.6 | D105: 10.55 | E105: 9.23 | F105: 7.47 | G105: 2.66 | H105: 0.45 | I105: 0.61 | J105: 17.15 | K105: 19.97 | L105: 16.7 | M105: 19.36 | N105: 0.1592814371
A106: 57 | B106: 39.53 | C106: 32.39 | D106: 10.55 | E106: 9.98 | F106: 8.18 | G106: 2.66 | H106: 0.49 | I106: 0.65 | J106: 18.65 | K106: 21.47 | L106: 18.16 | M106: 20.82 | N106: 0.1464757709
A107: 58 | B107: 42.71 | C107: 35.45 | D107: 10.55 | E107: 10.78 | F107: 8.95 | G107: 2.66 | H107: 0.54 | I107: 0.7 | J107: 20.27 | K107: 23.09 | L107: 19.73 | M107: 22.39 | N107: 0.134820071
A108: 59 | B108: 46.13 | C108: 38.8 | D108: 10.55 | E108: 11.65 | F108: 9.8 | G108: 2.66 | H108: 0.59 | I108: 0.75 | J108: 22.04 | K108: 24.86 | L108: 21.45 | M108: 24.11 | N108: 0.124009324
A109: 60 | B109: 49.81 | C109: 42.47 | D109: 10.55 | E109: 12.58 | F109: 10.72 | G109: 2.66 | H109: 0.64 | I109: 0.8 | J109: 23.94 | K109: 26.76 | L109: 23.3 | M109: 25.96 | N109: 0.1141630901
A110: =A45 -> 61 | B110: 53.78 | C110: 46.48 | D110: 10.55 | E110: 13.58 | F110: 11.74 | G110: 2.66 | H110: 0.7 | I110: 0.86 | J110: 26.02 | K110: 28.84 | L110: 25.32 | M110: 27.98 | N110: 0.1050552923
A111: 62 | B111: 58.09 | C111: 50.87 | D111: 10.55 | E111: 14.67 | F111: 12.84 | G111: 2.66 | H111: 0.77 | I111: 0.93 | J111: 28.28 | K111: 31.1 | L111: 27.51 | M111: 30.17 | N111: 0.09669211196
A112: 63 | B112: 62.79 | C112: 55.68 | D112: 10.55 | E112: 15.85 | F112: 14.06 | G112: 2.66 | H112: 0.84 | I112: 1 | J112: 30.75 | K112: 33.57 | L112: 29.91 | M112: 32.57 | N112: 0.08893346707
A113: 64 | B113: 67.94 | C113: 60.95 | D113: 10.55 | E113: 17.15 | F113: 15.39 | G113: 2.66 | H113: 0.92 | I113: 1.08 | J113: 33.46 | K113: 36.28 | L113: 32.54 | M113: 35.2 | N113: 0.08174554395
A114: 65 | B114: 73.6 | C114: 66.71 | D114: 10.55 | E114: 18.58 | F114: 16.84 | G114: 2.66 | H114: 1.01 | I114: 1.17 | J114: 36.43 | K114: 39.25 | L114: 35.42 | M114: 38.08 | N114: 0.07509881423
A115: 66 | B115: 79.88 | C115: 73.02 | D115: 10.55 | E115: 20.17 | F115: 18.44 | G115: 2.66 | H115: 1.11 | I115: 1.27 | J115: 39.72 | K115: 42.54 | L115: 38.61 | M115: 41.27 | N115: 0.06889406889
A116: 67 | B116: 86.87 | C116: 79.93 | D116: 10.55 | E116: 21.93 | F116: 20.18 | G116: 2.66 | H116: 1.21 | I116: 1.37 | J116: 43.32 | K116: 46.14 | L116: 42.11 | M116: 44.77 | N116: 0.06316789361
A117: 68 | B117: 94.72 | C117: 87.49 | D117: 10.55 | E117: 23.92 | F117: 22.09 | G117: 2.66 | H117: 1.33 | I117: 1.49 | J117: 47.34 | K117: 50.16 | L117: 46.01 | M117: 48.67 | N117: 0.0578135188
A118: =A53 -> 69 | B118: 103.6 | C118: 95.76 | D118: 10.55 | E118: 26.16 | F118: 24.18 | G118: 2.66 | H118: 1.45 | I118: 1.61 | J118: 51.79 | K118: 54.61 | L118: 50.34 | M118: 53 | N118: 0.05284068335
A119: 70 | B119: 113.74 | C119: 104.82 | D119: 10.55 | E119: 28.72 | F119: 26.47 | G119: 2.66 | H119: 1.59 | I119: 1.75 | J119: 56.78 | K119: 59.6 | L119: 55.19 | M119: 57.85 | N119: 0.04819713716
A120: 71 | B120: 125.37 | C120: 0 | D120: 10.55 | E120: 31.66 | F120: 0 | G120: 2.66 | H120: 0 | I120: 0.16 | J120: 31.66 | K120: 34.48 | L120: 31.66 | M120: 34.32 | N120: 0.08401768793
A121: 72 | B121: 138.79 | C121: 0 | D121: 10.55 | E121: 35.04 | F121: 0 | G121: 2.66 | H121: 0 | I121: 0.16 | J121: 35.04 | K121: 37.86 | L121: 35.04 | M121: 37.7 | N121: 0.07591324201
A122: =A57 -> 73 | B122: 154.28 | C122: 0 | D122: 10.55 | E122: 38.96 | F122: 0 | G122: 2.66 | H122: 0 | I122: 0.16 | J122: 38.96 | K122: 41.78 | L122: 38.96 | M122: 41.62 | N122: 0.068275154
A123: 74 | B123: 172.08 | C123: 0 | D123: 10.55 | E123: 43.45 | F123: 0 | G123: 2.66 | H123: 0 | I123: 0.16 | J123: 43.45 | K123: 46.27 | L123: 43.45 | M123: 46.11 | N123: 0.06121979287
A124: 75 | B124: 192.44 | C124: 0 | D124: 10.55 | E124: 48.59 | F124: 0 | G124: 2.66 | H124: 0 | I124: 0.16 | J124: 48.59 | K124: 51.41 | L124: 48.59 | M124: 51.25 | N124: 0.05474377444

Sheet invalidez_total (hidden)
A1: EDAD | B1: peaimf-2007g (IAP) M | C1: peaimf-2007g (IAP) F | D1: Combinada Proporcion %Hombre%Mujer | E1: sin ajustada con la Correccion por Edad
A2: 18 | B2: 6.4e-05 | C2: 5.4e-05 | D2: =+B2*hombre+C2*(1-hombre) -> 5.9e-05 | E2: =MAX(TsaminT,D2*((ajuste-10)/ajuste)^((A2/10))*ajuste_total) -> 0.00045
A3: 19 | B3: 7.1e-05 | C3: 6e-05 | D3: =+B3*hombre+C3*(1-hombre) -> 6.55e-05 | E3: 0.00045
A4: 20 | B4: 8e-05 | C4: 6.5e-05 | D4: 7.25e-05 | E4: 0.00045
A5: 21 | B5: 8.8e-05 | C5: 7.2e-05 | D5: 8e-05 | E5: 0.00045
A6: 22 | B6: 9.9e-05 | C6: 8e-05 | D6: 8.95e-05 | E6: 0.00045
A7: 23 | B7: 0.00011 | C7: 8.8e-05 | D7: 9.9e-05 | E7: 0.00045
A8: 24 | B8: 0.000122 | C8: 9.8e-05 | D8: 0.00011 | E8: 0.00045
A9: 25 | B9: 0.000137 | C9: 0.000108 | D9: 0.0001225 | E9: 0.00045
A10: 26 | B10: 0.000151 | C10: 0.000119 | D10: 0.000135 | E10: 0.00045
A11: 27 | B11: 0.000169 | C11: 0.000132 | D11: 0.0001505 | E11: 0.00045
A12: 28 | B12: 0.000188 | C12: 0.000145 | D12: 0.0001665 | E12: 0.00045
A13: 29 | B13: 0.000209 | C13: 0.00016 | D13: 0.0001845 | E13: 0.00045
A14: 30 | B14: 0.000233 | C14: 0.000178 | D14: 0.0002055 | E14: 0.00045
A15: 31 | B15: 0.00026 | C15: 0.000196 | D15: 0.000228 | E15: 0.00045
A16: 32 | B16: 0.000289 | C16: 0.000217 | D16: 0.000253 | E16: 0.00045
A17: 33 | B17: 0.000322 | C17: 0.00024 | D17: 0.000281 | E17: 0.00045
A18: 34 | B18: 0.000359 | C18: 0.000264 | D18: 0.0003115 | E18: 0.00045
A19: 35 | B19: 0.000399 | C19: 0.000293 | D19: 0.000346 | E19: 0.00045
A20: 36 | B20: 0.000445 | C20: 0.000324 | D20: 0.0003845 | E20: 0.00045
A21: 37 | B21: 0.000494 | C21: 0.000358 | D21: 0.000426 | E21: 0.00045
A22: 38 | B22: 0.000551 | C22: 0.000395 | D22: 0.000473 | E22: 0.0004668184545
A23: 39 | B23: 0.000614 | C23: 0.000436 | D23: 0.000525 | E23: 0.0005107770652
A24: 40 | B24: 0.000682 | C24: 0.000483 | D24: 0.0005825 | E24: 0.0005586672642
A25: 41 | B25: 0.00076 | C25: 0.000534 | D25: 0.000647 | E25: 0.0006117116961
A26: 42 | B26: 0.000846 | C26: 0.000589 | D26: 0.0007175 | E26: 0.0006687281705
A27: 43 | B27: 0.000942 | C27: 0.000652 | D27: 0.000797 | E27: 0.0007322700028
A28: 44 | B28: 0.001049 | C28: 0.00072 | D28: 0.0008845 | E28: 0.0008011170391
A29: 45 | B29: 0.001167 | C29: 0.000797 | D29: 0.000982 | E29: 0.0008767884674
A30: 46 | B30: 0.0013 | C30: 0.00088 | D30: 0.00109 | E30: 0.0009593896927
A31: 47 | B31: 0.001447 | C31: 0.000973 | D31: 0.00121 | E31: 0.001049878712
A32: 48 | B32: 0.001611 | C32: 0.001075 | D32: 0.001343 | E32: 0.001148722114
A33: 49 | B33: 0.001794 | C33: 0.001189 | D33: 0.0014915 | E33: 0.00125761421
A34: 50 | B34: 0.001997 | C34: 0.001314 | D34: 0.0016555 | E34: =MAX(TsaminT,D34*((ajuste-10)/ajuste)^((A34/10))*ajuste_total) -> 0.001376063808
A35: 51 | B35: 0.002223 | C35: 0.001451 | D35: 0.001837 | E35: 0.001505233077
A36: 52 | B36: 0.002475 | C36: 0.001605 | D36: 0.00204 | E36: 0.001647820774
A37: 53 | B37: 0.002756 | C37: 0.001774 | D37: 0.002265 | E37: 0.00180357091
A38: 54 | B38: 0.003069 | C38: 0.00196 | D38: 0.0025145 | E38: 0.001973794184
A39: 55 | B39: 0.003416 | C39: 0.002166 | D39: 0.002791 | E39: 0.002159709162
A40: 56 | B40: 0.003803 | C40: 0.002394 | D40: 0.0030985 | E40: 0.002363590001
A41: 57 | B41: 0.004234 | C41: 0.002645 | D41: 0.0034395 | E41: 0.002586432607
A42: 58 | B42: 0.004714 | C42: 0.002924 | D42: 0.003819 | E42: 0.002831005549
A43: 59 | B43: 0.005247 | C43: 0.003232 | D43: 0.0042395 | E43: 0.003098067752
A44: 60 | B44: 0.005842 | C44: 0.003573 | D44: 0.0047075 | E44: 0.003391187553
A45: 61 | B45: 0.006504 | C45: 0.003949 | D45: 0.0052265 | E45: 0.003711569908
A46: 62 | B46: 0.007241 | C46: 0.004364 | D46: 0.0058025 | E46: 0.004062066684
A47: 63 | B47: 0.008063 | C47: 0.004824 | D47: 0.0064435 | E47: 0.004446711378
A48: 64 | B48: 0.008977 | C48: 0.005332 | D48: 0.0071545 | E48: 0.004867227052
A49: 65 | B49: =+B48*$I$47 -> 0 | C49: =+$M$47*C48 -> 0 | D49: =+D48*D48/D47 -> 0.007943954411 | E49: 0.005327509965
A50: 66 | B50: =+B49*$I$47 -> 0 | C50: =+$M$47*C49 -> 0 | D50: =+D49*D49/D48 -> 0.008820520189 | E50: 0.005831320815
A51: 67 | B51: 0 | C51: 0 | D51: 0.009793809528 | E51: 0.006382775945
A52: 68 | B52: 0 | C52: 0 | D52: 0.01087449527 | E52: 0.006986380969
A53: 69 | B53: 0 | C53: 0 | D53: 0.01207442794 | E53: 0.007647067587
A54: 70 | B54: 0 | C54: 0 | D54: 0.01340676568 | E54: 0.008370233879

Sheet invalidez_absoluta (hidden)
A1: EDAD | B1: peaimf-2007g (IAP) M | C1: peaimf-2007g (IAP) F | D1: Combinada Proporcion %Hombre%Mujer | E1: sin ajustada con la Correccion por Edad
A2: 18 | B2: 6.4e-05 | C2: 5.4e-05 | D2: =+B2*hombre+C2*(1-hombre) -> 5.9e-05 | E2: =MAX(TasaminA,D2*((ajuste-10)/ajuste)^((A2/10))) -> 0.0002
A3: 19 | B3: 7.1e-05 | C3: 6e-05 | D3: 6.55e-05 | E3: 0.0002
A4: 20 | B4: 8e-05 | C4: 6.5e-05 | D4: 7.25e-05 | E4: 0.0002
A5: 21 | B5: 8.8e-05 | C5: 7.2e-05 | D5: 8e-05 | E5: 0.0002
A6: 22 | B6: 9.9e-05 | C6: 8e-05 | D6: 8.95e-05 | E6: 0.0002
A7: 23 | B7: 0.00011 | C7: 8.8e-05 | D7: 9.9e-05 | E7: 0.0002
A8: 24 | B8: 0.000122 | C8: 9.8e-05 | D8: 0.00011 | E8: 0.0002
A9: 25 | B9: 0.000137 | C9: 0.000108 | D9: 0.0001225 | E9: 0.0002
A10: 26 | B10: 0.000151 | C10: 0.000119 | D10: 0.000135 | E10: 0.0002
A11: 27 | B11: 0.000169 | C11: 0.000132 | D11: 0.0001505 | E11: 0.0002
A12: 28 | B12: 0.000188 | C12: 0.000145 | D12: 0.0001665 | E12: 0.0002
A13: 29 | B13: 0.000209 | C13: 0.00016 | D13: 0.0001845 | E13: 0.0002
A14: 30 | B14: 0.000233 | C14: 0.000178 | D14: 0.0002055 | E14: 0.0002
A15: 31 | B15: 0.00026 | C15: 0.000196 | D15: 0.000228 | E15: 0.0002
A16: 32 | B16: 0.000289 | C16: 0.000217 | D16: 0.000253 | E16: 0.0002
A17: 33 | B17: 0.000322 | C17: 0.00024 | D17: 0.000281 | E17: 0.0002
A18: 34 | B18: 0.000359 | C18: 0.000264 | D18: 0.0003115 | E18: 0.0002
A19: 35 | B19: 0.000399 | C19: 0.000293 | D19: 0.000346 | E19: 0.0002096806842
A20: 36 | B20: 0.000445 | C20: 0.000324 | D20: 0.0003845 | E20: 0.0002297015257
A21: 37 | B21: 0.000494 | C21: 0.000358 | D21: 0.000426 | E21: 0.0002508778644
A22: 38 | B22: 0.000551 | C22: 0.000395 | D22: 0.000473 | E22: 0.0002745990909
A23: 39 | B23: 0.000614 | C23: 0.000436 | D23: 0.000525 | E23: 0.0003004570972
A24: 40 | B24: 0.000682 | C24: 0.000483 | D24: 0.0005825 | E24: 0.0003286278025
A25: 41 | B25: 0.00076 | C25: 0.000534 | D25: 0.000647 | E25: 0.0003598304094
A26: 42 | B26: 0.000846 | C26: 0.000589 | D26: 0.0007175 | E26: 0.000393369512
A27: 43 | B27: 0.000942 | C27: 0.000652 | D27: 0.000797 | E27: 0.0004307470605
A28: 44 | B28: 0.001049 | C28: 0.00072 | D28: 0.0008845 | E28: 0.0004712453171
A29: 45 | B29: 0.001167 | C29: 0.000797 | D29: 0.000982 | E29: 0.000515757922
A30: 46 | B30: 0.0013 | C30: 0.00088 | D30: 0.00109 | E30: 0.0005643468781
A31: 47 | B31: 0.001447 | C31: 0.000973 | D31: 0.00121 | E31: 0.0006175757132
A32: 48 | B32: 0.001611 | C32: 0.001075 | D32: 0.001343 | E32: 0.0006757188905
A33: 49 | B33: 0.001794 | C33: 0.001189 | D33: 0.0014915 | E33: 0.0007397730649
A34: 50 | B34: 0.001997 | C34: 0.001314 | D34: 0.0016555 | E34: =MAX(TasaminA,D34*((ajuste-10)/ajuste)^((A34/10))) -> 0.0008094492991
A35: 51 | B35: 0.002223 | C35: 0.001451 | D35: 0.001837 | E35: 0.0008854312218
A36: 52 | B36: 0.002475 | C36: 0.001605 | D36: 0.00204 | E36: 0.0009693063377
A37: 53 | B37: 0.002756 | C37: 0.001774 | D37: 0.002265 | E37: 0.001060924065
A38: 54 | B38: 0.003069 | C38: 0.00196 | D38: 0.0025145 | E38: 0.001161055402
A39: 55 | B39: 0.003416 | C39: 0.002166 | D39: 0.002791 | E39: 0.001270417154
A40: 56 | B40: 0.003803 | C40: 0.002394 | D40: 0.0030985 | E40: 0.001390347059
A41: 57 | B41: 0.004234 | C41: 0.002645 | D41: 0.0034395 | E41: 0.001521430945
A42: 58 | B42: 0.004714 | C42: 0.002924 | D42: 0.003819 | E42: 0.001665297382
A43: 59 | B43: 0.005247 | C43: 0.003232 | D43: 0.0042395 | E43: 0.001822392795
A44: 60 | B44: 0.005842 | C44: 0.003573 | D44: 0.0047075 | E44: 0.001994816208
A45: 61 | B45: 0.006504 | C45: 0.003949 | D45: 0.0052265 | E45: 0.002183276416
A46: 62 | B46: 0.007241 | C46: 0.004364 | D46: 0.0058025 | E46: 0.002389450991
A47: 63 | B47: 0.008063 | C47: 0.004824 | D47: 0.0064435 | E47: 0.002615712576
A48: 64 | B48: 0.008977 | C48: 0.005332 | D48: 0.0071545 | E48: 0.002863074737
A49: 65 | B49: =+B48*$H$47 -> 0 | C49: =+$L$47*C48 -> 0 | D49: =+D48*D48/D47 -> 0.007943954411 | E49: 0.003133829391
A50: 66 | B50: 0 | C50: 0 | D50: =+D49*D49/D48 -> 0.008820520189 | E50: 0.003430188715
A51: 67 | B51: 0 | C51: 0 | D51: 0.009793809528 | E51: 0.003754574086
A52: 68 | B52: 0 | C52: 0 | D52: 0.01087449527 | E52: 0.004109635864
A53: 69 | B53: 0 | C53: 0 | D53: 0.01207442794 | E53: 0.004498275051
A54: 70 | B54: 0 | C54: 0 | D54: 0.01340676568 | E54: 0.004923666988

Sheet fall_accidente (hidden)
A1: EDAD | B1: fall. accidente | C1: fall accidente de circulacion | D1: total
A2: 18 | B2: 0.000375 | C2: 0.0003 | D2: =+C2+B2 -> 0.000675
A3: 19 | B3: 0.000375 | C3: 0.0003 | D3: =+C3+B3 -> 0.000675
A4: 20 | B4: 0.000375 | C4: 0.0003 | D4: 0.000675
A5: 21 | B5: 0.000375 | C5: 0.0003 | D5: 0.000675
A6: 22 | B6: 0.000375 | C6: 0.0003 | D6: 0.000675
A7: 23 | B7: 0.000375 | C7: 0.0003 | D7: 0.000675
A8: 24 | B8: 0.000375 | C8: 0.0003 | D8: 0.000675
A9: 25 | B9: 0.000375 | C9: 0.0003 | D9: 0.000675
A10: 26 | B10: 0.000375 | C10: 0.0003 | D10: 0.000675
A11: 27 | B11: 0.000375 | C11: 0.0003 | D11: 0.000675
A12: 28 | B12: 0.000375 | C12: 0.0003 | D12: 0.000675
A13: 29 | B13: 0.000375 | C13: 0.0003 | D13: 0.000675
A14: 30 | B14: 0.000375 | C14: 0.0003 | D14: 0.000675
A15: 31 | B15: 0.000375 | C15: 0.0003 | D15: 0.000675
A16: 32 | B16: 0.000375 | C16: 0.0003 | D16: 0.000675
A17: 33 | B17: 0.000375 | C17: 0.0003 | D17: 0.000675
A18: 34 | B18: 0.000375 | C18: 0.0003 | D18: 0.000675
A19: 35 | B19: 0.000375 | C19: 0.0003 | D19: 0.000675
A20: 36 | B20: 0.000375 | C20: 0.0003 | D20: 0.000675
A21: 37 | B21: 0.000375 | C21: 0.0003 | D21: 0.000675
A22: 38 | B22: 0.000375 | C22: 0.0003 | D22: 0.000675
A23: 39 | B23: 0.000375 | C23: 0.0003 | D23: 0.000675
A24: 40 | B24: 0.000375 | C24: 0.0003 | D24: 0.000675
A25: 41 | B25: 0.000375 | C25: 0.0003 | D25: 0.000675
A26: 42 | B26: 0.000375 | C26: 0.0003 | D26: 0.000675
A27: 43 | B27: 0.000375 | C27: 0.0003 | D27: 0.000675
A28: 44 | B28: 0.000375 | C28: 0.0003 | D28: 0.000675
A29: 45 | B29: 0.000375 | C29: 0.0003 | D29: 0.000675
A30: 46 | B30: 0.000375 | C30: 0.0003 | D30: 0.000675
A31: 47 | B31: 0.000375 | C31: 0.0003 | D31: 0.000675
A32: 48 | B32: 0.000375 | C32: 0.0003 | D32: 0.000675
A33: 49 | B33: 0.000375 | C33: 0.0003 | D33: 0.000675
A34: 50 | B34: 0.000375 | C34: 0.0003 | D34: 0.000675
A35: 51 | B35: 0.000375 | C35: 0.0003 | D35: 0.000675
A36: 52 | B36: 0.000375 | C36: 0.0003 | D36: 0.000675
A37: 53 | B37: 0.000375 | C37: 0.0003 | D37: 0.000675
A38: 54 | B38: 0.000375 | C38: 0.0003 | D38: 0.000675
A39: 55 | B39: 0.000375 | C39: 0.0003 | D39: 0.000675
A40: 56 | B40: 0.000375 | C40: 0.0003 | D40: 0.000675
A41: 57 | B41: 0.000375 | C41: 0.0003 | D41: 0.000675
A42: 58 | B42: 0.000375 | C42: 0.0003 | D42: 0.000675
A43: 59 | B43: 0.000375 | C43: 0.0003 | D43: 0.000675
A44: 60 | B44: 0.000375 | C44: 0.0003 | D44: 0.000675
A45: 61 | B45: 0.000375 | C45: 0.0003 | D45: 0.000675
A46: 62 | B46: 0.000375 | C46: 0.0003 | D46: 0.000675
A47: 63 | B47: 0.000375 | C47: 0.0003 | D47: 0.000675
A48: 64 | B48: 0.000375 | C48: 0.0003 | D48: 0.000675
A49: 65 | B49: 0.000375 | C49: 0.0003 | D49: 0.000675
A50: 66 | B50: 0.000375 | C50: 0.0003 | D50: 0.000675
A51: 67 | B51: 0.000375 | C51: 0.0003 | D51: 0.000675
A52: 68 | B52: 0.000375 | C52: 0.0003 | D52: 0.000675
A53: 69 | B53: 0.000375 | C53: 0.0003 | D53: 0.000675
A54: 70 | B54: 0.000375 | C54: 0.0003 | D54: 0.000675
A55: 71 | B55: 0.000375 | C55: 0.0003 | D55: 0.000675
A56: 72 | B56: 0.000375 | C56: 0.0003 | D56: 0.000675
A57: 73 | B57: 0.000375 | C57: 0.0003 | D57: 0.000675
A58: 74 | B58: 0.000375 | C58: 0.0003 | D58: 0.000675
A59: 75 | B59: 0.000375 | C59: 0.0003 | D59: 0.000675
